Workbook

Sheet גיליון1
A1: V2.01 | B1: הראל חברה לביטוח בע"מ | BB1: 'נספחים ב וג'!$ | CI1: =MAX(A11:A480)/7 -> 68.42857143
A2: דו"ח חודשי , שיעורי ההשקעות ורכוש קבוע מסך כל ההתחייבויות לתקופה שנסתיימה ביום - | L2: 31.5.22 | AI2: =AJ2-1 -> 50 | AJ2: 51 | AK2: 52 | AL2: 53 | AM2: 54 | AN2: 55 | AO2: 56 | AP2: 57 | AQ2: 58 | AR2: 59 | AS2: 60 | AT2: 61 | AU2: 62 | AV2: 63 | AW2: 64 | AX2: 65 | AY2: 66 | AZ2: 67 | BA2: =BB2-1 -> 68 | BB2: 69 | BC2: =BB2+1 -> 70 | BD2: =BC2+1 -> 71 | BE2: 72 | BF2: 73 | BG2: 74 | BH2: 75 | BI2: 76 | BJ2: 77 | BK2: 78 | BL2: 79 | BM2: 80 | BN2: 81 | BO2: 82 | BP2: 83 | BQ2: 84 | BR2: 85 | BS2: 86 | BT2: 87 | BU2: 88 | BV2: 89 | BW2: 90 | BX2: 91 | BY2: 92 | BZ2: 93 | CA2: 94 | CB2: 95 | CC2: 96 | CD2: 97 | CE2: 98 | CF2: 99 | CI2: =10+CI1 -> 78.42857143
A3: הסכומים באלפי ש"ח | O3: 1 | P3: =O3+1 -> 2 | Q3: =P3+1 -> 3 | R3: 4 | S3: 5 | T3: 6 | U3: 7 | V3: 8 | W3: 9 | X3: 10 | Y3: 11 | Z3: 12 | AA3: 13 | AB3: 14 | AC3: 15 | AD3: 16 | AE3: 17 | AF3: 18 | AG3: 19 | AH3: 20 | AI3: 21 | AJ3: 22 | AK3: 23 | AL3: 24 | AM3: 25 | AN3: 26 | AO3: 27 | AP3: 28 | AQ3: 29 | AR3: 30 | AS3: 31 | AT3: 32 | AU3: 33 | AV3: 34 | AW3: 35 | AX3: 36 | AY3: 37 | AZ3: 38 | BA3: 39 | BB3: 40 | BC3: 41 | BD3: 42 | BE3: 43 | BF3: 44 | BG3: 45 | BH3: 46 | BI3: 47 | BJ3: 48 | BK3: 49 | BL3: 50 | BM3: 51 | BN3: 52 | BO3: 53 | BP3: 54 | BQ3: 55 | BR3: 56 | BS3: 57 | BT3: 58 | BU3: 59 | BV3: 60 | BW3: 61 | BX3: 62 | BY3: 63 | BZ3: 64 | CA3: 65 | CB3: 66 | CC3: 67 | CD3: 68 | CE3: 69 | CF3: 70 | CI3: =CI2+$CI$1 -> 146.8571429
CI4: 215.2857143
CI5: 283.7142857
A6: גיליוון זה הוא הגיליון היחיד בקובץ זה. גבולות הגיליון הם טור CI ושורה 496. גיליון זה מכיל טבלה המתחילה בתא A7 ומסתיימת בתא CG496. התאים A7 עד CG10 מכילים את כותרות הטבלה. קיימים תאים ריקים בטבלה.
J7: סה"כ משתתף ברווחים | K7: ביטוח חיים | CI7: =CI5+$CI$1 -> 352.1428571
K8: 10 | L8: 11 | M8: 12 | N8: 13 | CI8: 420.5714286
I9: חזרה | K9: קרן ח' | L9: קרן ט' | M9: קרן י' | N9: קרן י' פוליסות שהונפקו לאחר 1.1.04 | O9: הראל-מסלול כללי | P9: הראל-מסלול אג"ח ללא מניות | Q9: הראל-מסלול אג"ח עד 20% במניות | R9: הראל-מסלול אג"ח עד 10% במניות | S9: הראל-מסלול מניות | T9: הראל-מסלול שקלי טווח קצר | U9: הראל-מסלול חו"ל | V9: הראל - מסלול אג"ח מדינת ישראל | W9: הראל - מסלול אג"ח קונצרני | X9: הראל-מסלול משתתף ברווחים שקלי טווח קצר | Y9: הראל-מסלול משתתף ברווחים כללי ללא מניות | Z9: הראל-מסלול משתתף ברווחים לפחות 75% מניות | AA9: הראל- אג"ח חו"ל | AB9: הראל-מסלול פאסיבי - כללי | AC9: הראל-מסלול לבני 50 ומטה | AD9: הראל-מסלול לבני 50 עד 60 | AE9: הראל-מסלול לבני 60 ומעלה | AF9: הראל-מסלול בסיסי למקבלי קצבה | AG9: הראל-מסלול אג"ח עד 20% במניות למקבלי קצבה | AH9: הראל חברה לביטוח בע"מ מדרגות עד 50 | AI9: הראל מסלול לגילאי 50 עד 60 | AJ9: הראל מסלול לגילאי 60 ומעלה | AK9: הראל מסלול בסיסי למקבלי קצבה | AL9: הראל מסלול אג"ח עד 20% במניות למקבלי קצבה | AM9: הראל מסלול הוני ללא אג"ח | AN9: הראל מחקה מדד ממשלתי שקלי ריבית קבועה | AO9: הראל מחקה מדד S&P 500 | AP9: הראל מחקה מדד ממשלתי צמוד 5-10 | AQ9: הראל מחקה מדד תל בונד 60 | AR9: הראל מחקה מדד ת"א 35 | CG9: אחר | CI9: 489
A10: שורה | K10: 0010 | L10: 0011 | M10: 0012 | N10: 0013 | O10: 88 | P10: 89 | Q10: 90 | R10: 91 | S10: 92 | T10: 93 | U10: 163 | V10: 177 | W10: 178 | X10: 195 | Y10: 196 | Z10: 197 | AA10: 8592 | AB10: 9561 | AC10: 9562 | AD10: 9563 | AE10: 9564 | AF10: 9565 | AG10: 9566 | AH10: 11400 | AI10: 11401 | AJ10: 11402 | AK10: 11403 | AL10: 11404 | AM10: 12981 | AN10: 13433 | AO10: 13434 | AP10: 13435 | AQ10: 13436 | AR10: 13437
A11: 10 | B11: 1. | C11: השקעות | J11: 78411741.09 | K11: 3827.184241 | L11: 891248.7453 | M11: 23876233.15 | N11: 787931.3095 | O11: 23555780.06 | P11: 1263922.78 | Q11: 6384341.68 | R11: 1684629.98 | S11: 2602630.191 | T11: 768455.2509 | U11: 352114.81 | V11: 275813.52 | W11: 122353.77 | X11: 49214.8673 | Y11: 74550.17019 | Z11: 101652.0719 | AA11: 21324.06 | AB11: 232405.01 | AC11: 2418317.96 | AD11: 927550.3375 | AE11: 1423993.863 | AF11: 2031686.617 | AG11: 911156.4505 | AH11: 48542.86071 | AI11: 132623.0143 | AJ11: 244311.9844 | AK11: 1085884.615 | AL11: 393910.1954 | AM11: 445710.75 | AN11: 17953.61 | AO11: 232158.03 | AP11: 53840.79 | AQ11: 59743.94 | AR11: 72044.67 | AS11: 0 | AT11: 0 | AU11: 0 | AV11: 0 | AW11: 0 | AX11: 0 | AY11: 0 | AZ11: 0 | BA11: 0 | BB11: 0 | BC11: 0 | BD11: 0 | BE11: 0 | BF11: 0 | BG11: 0 | BH11: 0 | BI11: 0 | BJ11: 0 | BK11: 0 | BL11: 0 | BM11: 0 | BN11: 0 | BO11: 0 | BP11: 0 | BQ11: 0 | BR11: 0 | BS11: 0 | BT11: 0 | BU11: 0 | BV11: 0 | BW11: 0 | BX11: 0 | BY11: 0 | BZ11: 0 | CA11: 0 | CB11: 0 | CC11: 0 | CD11: 0 | CE11: 0 | CF11: 0 | CG11: 4863882.79
A12: =A11+1 -> 11 | C12: א. | D12: מזומנים ושווי מזומנים | J12: 3672103.44 | K12: 72.77259644 | L12: 29689.78584 | M12: 949588.8291 | N12: 31337.05243 | O12: 1035250.05 | P12: 49901.52967 | Q12: 216449.52 | R12: 57112.78 | S12: 196964.0389 | T12: 135880.3154 | U12: 23819.52 | V12: 23267.41 | W12: 4514.64 | X12: 8702.304632 | Y12: 2943.350328 | Z12: 7692.911086 | AA12: 1272.72 | AB12: 4691.9 | AC12: 121608.7592 | AD12: 49970.28768 | AE12: 66901.50325 | AF12: 100881.6593 | AG12: 41856.00575 | AH12: 2441.050828 | AI12: 7144.852316 | AJ12: 11478.16675 | AK12: 53918.67074 | AL12: 18095.14425 | AM12: 116470.21 | AN12: 260.13 | AO12: 2568.36 | AP12: 617.84 | AQ12: 741.01 | AR12: 927.75 | AS12: 0 | AT12: 0 | AU12: 0 | AV12: 0 | AW12: 0 | AX12: 0 | AY12: 0 | AZ12: 0 | BA12: 0 | BB12: 0 | BC12: 0 | BD12: 0 | BE12: 0 | BF12: 0 | BG12: 0 | BH12: 0 | BI12: 0 | BJ12: 0 | BK12: 0 | BL12: 0 | BM12: 0 | BN12: 0 | BO12: 0 | BP12: 0 | BQ12: 0 | BR12: 0 | BS12: 0 | BT12: 0 | BU12: 0 | BV12: 0 | BW12: 0 | BX12: 0 | BY12: 0 | BZ12: 0 | CA12: 0 | CB12: 0 | CC12: 0 | CD12: 0 | CE12: 0 | CF12: 0 | CG12: 297070.61
A13: 12 | D13: (1 | E13: בישראל | J13: 3636970.164 | K13: 71.48401199 | L13: 29164.06877 | M13: 932774.4586 | N13: 30782.1672 | O13: 1018013.036 | P13: 49901.52967 | Q13: 216449.52 | R13: 57112.78 | S13: 196964.0389 | T13: 135880.3154 | U13: 23819.52 | V13: 23267.41 | W13: 4514.64 | X13: 8702.304632 | Y13: 2943.350328 | Z13: 7692.911086 | AA13: 1272.72 | AB13: 4691.9 | AC13: 121608.7592 | AD13: 49970.28768 | AE13: 66901.50325 | AF13: 100881.6593 | AG13: 41856.00575 | AH13: 2441.050828 | AI13: 7144.852316 | AJ13: 11478.16675 | AK13: 53918.67074 | AL13: 18095.14425 | AM13: 116470.21 | AN13: 260.13 | AO13: 2568.36 | AP13: 617.84 | AQ13: 741.01 | AR13: 927.75 | AS13: 0 | AT13: 0 | AU13: 0 | AV13: 0 | AW13: 0 | AX13: 0 | AY13: 0 | AZ13: 0 | BA13: 0 | BB13: 0 | BC13: 0 | BD13: 0 | BE13: 0 | BF13: 0 | BG13: 0 | BH13: 0 | BI13: 0 | BJ13: 0 | BK13: 0 | BL13: 0 | BM13: 0 | BN13: 0 | BO13: 0 | BP13: 0 | BQ13: 0 | BR13: 0 | BS13: 0 | BT13: 0 | BU13: 0 | BV13: 0 | BW13: 0 | BX13: 0 | BY13: 0 | BZ13: 0 | CA13: 0 | CB13: 0 | CC13: 0 | CD13: 0 | CE13: 0 | CF13: 0 | CG13: 297070.61
A14: 13 | E14: א) | F14: יתרות מזומנים ועו"ש בשקלים חדשים | J14: 2035118.96 | K14: 38.27033871 | L14: 15613.54433 | M14: 499378.7209 | N14: 16479.8244 | O14: 549132.26 | P14: 40329.86668 | Q14: 152700.4 | R14: 41851.18 | S14: 63820.95682 | T14: 59289.97883 | U14: 7310.66 | V14: 21418.09 | W14: 2783.21 | X14: 3797.161171 | Y14: 2378.783318 | Z14: 2492.683177 | AA14: 571.02 | AB14: 1800.12 | AC14: 65528.50724 | AD14: 31217.80535 | AE14: 46001.55806 | AF14: 63547.23542 | AG14: 32218.64806 | AH14: 1315.352759 | AI14: 4463.584646 | AJ14: 7892.401942 | AK14: 33964.37458 | AL14: 13928.73194 | AM14: 104210.71 | AN14: 260.13 | AO14: 2568.36 | AP14: 617.84 | AQ14: 741.01 | AR14: 927.75 | CG14: 144528.23
A15: 14 | E15: ב) | F15: יתרות מזומנים ועו"ש נקובים במט"ח | J15: 1303611.024 | K15: 27.82045801 | L15: 11350.19885 | M15: 363021.2119 | N15: 11979.93742 | O15: 432457.6558 | P15: 6390.894777 | Q15: 52268.94 | R15: 10619.62 | S15: 102158.9144 | T15: 2.481100651 | U15: 14577.07 | W15: 1428.95 | X15: 0.1588993492 | Y15: 376.9552229 | Z15: 3990.065644 | AA15: 693.12 | AB15: 2891.78 | AC15: 51102.07873 | AD15: 17224.54927 | AE15: 18311.03902 | AF15: 33442.07493 | AG15: 7913.733208 | AH15: 1025.771272 | AI15: 2462.800726 | AJ15: 3141.590981 | AK15: 17873.93507 | AL15: 3421.256792 | AM15: 11989.51 | CG15: 121466.91
A16: 15 | E16: ג) | F16: פח"ק/פר"י | J16: 298240.18 | K16: 5.393215263 | L16: 2200.325589 | M16: 70374.52582 | N16: 2322.405379 | O16: 36423.12 | P16: 3180.768213 | Q16: 11480.18 | R16: 4641.98 | S16: 30984.16773 | T16: 76587.85544 | U16: 1931.79 | V16: 1849.32 | W16: 302.48 | X16: 4904.984562 | Y16: 187.6117871 | Z16: 1210.162265 | AA16: 8.58 | AC16: 4978.173203 | AD16: 1527.933056 | AE16: 2588.906173 | AF16: 3892.348906 | AG16: 1723.624482 | AH16: 99.92679723 | AI16: 218.4669439 | AJ16: 444.1738273 | AK16: 2080.361094 | AL16: 745.1555178 | AM16: 269.99 | CG16: 31075.47
A17: 16 | E17: ד) | F17: פק"מ לתקופה של עד שלושה חודשים | J17: 0 | K17: 0 | L17: 0 | M17: 0 | N17: 0 | P17: 0 | S17: 0 | T17: 0 | X17: 0 | Y17: 0 | Z17: 0 | AC17: 0 | AD17: 0 | AE17: 0 | AF17: 0 | AG17: 0 | AH17: 0 | AI17: 0 | AJ17: 0 | AK17: 0 | AL17: 0 | CG17: 0
A18: 17 | E18: ה) | F18: פיקדון צמוד מדד עד שלושה חודשים | J18: 0 | K18: 0 | L18: 0 | M18: 0 | N18: 0 | P18: 0 | S18: 0 | T18: 0 | X18: 0 | Y18: 0 | Z18: 0 | AC18: 0 | AD18: 0 | AE18: 0 | AF18: 0 | AG18: 0 | AH18: 0 | AI18: 0 | AJ18: 0 | AK18: 0 | AL18: 0 | CG18: 0
A19: 18 | E19: ו) | F19: פיקדון צמוד מט"ח עד שלושה חודשים (פצ"מ) | J19: 0 | K19: 0 | L19: 0 | M19: 0 | N19: 0 | P19: 0 | S19: 0 | T19: 0 | X19: 0 | Y19: 0 | Z19: 0 | AC19: 0 | AD19: 0 | AE19: 0 | AF19: 0 | AG19: 0 | AH19: 0 | AI19: 0 | AJ19: 0 | AK19: 0 | AL19: 0 | CG19: 0
A20: 19 | E20: ז) | F20: פיקדונות במט"ח עד שלושה חודשים | J20: 0 | K20: 0 | L20: 0 | M20: 0 | N20: 0 | P20: 0 | S20: 0 | T20: 0 | X20: 0 | Y20: 0 | Z20: 0 | AC20: 0 | AD20: 0 | AE20: 0 | AF20: 0 | AG20: 0 | AH20: 0 | AI20: 0 | AJ20: 0 | AK20: 0 | AL20: 0 | CG20: 0
A21: 20 | D21: (2 | E21: בחו"ל | J21: 35133.27563 | K21: 1.288584452 | L21: 525.7170735 | M21: 16814.37054 | N21: 554.8852249 | O21: 17237.01421 | P21: 0 | Q21: 0 | R21: 0 | S21: 0 | T21: 0 | U21: 0 | V21: 0 | W21: 0 | X21: 0 | Y21: 0 | Z21: 0 | AA21: 0 | AB21: 0 | AC21: 0 | AD21: 0 | AE21: 0 | AF21: 0 | AG21: 0 | AH21: 0 | AI21: 0 | AJ21: 0 | AK21: 0 | AL21: 0 | AM21: 0 | AN21: 0 | AO21: 0 | AP21: 0 | AQ21: 0 | AR21: 0 | AS21: 0 | AT21: 0 | AU21: 0 | AV21: 0 | AW21: 0 | AX21: 0 | AY21: 0 | AZ21: 0 | BA21: 0 | BB21: 0 | BC21: 0 | BD21: 0 | BE21: 0 | BF21: 0 | BG21: 0 | BH21: 0 | BI21: 0 | BJ21: 0 | BK21: 0 | BL21: 0 | BM21: 0 | BN21: 0 | BO21: 0 | BP21: 0 | BQ21: 0 | BR21: 0 | BS21: 0 | BT21: 0 | BU21: 0 | BV21: 0 | BW21: 0 | BX21: 0 | BY21: 0 | BZ21: 0 | CA21: 0 | CB21: 0 | CC21: 0 | CD21: 0 | CE21: 0 | CF21: 0 | CG21: 0
A22: 21 | E22: א) | F22: יתרות מזומנים ועו"ש נקובים במט"ח | J22: 35133.27563 | K22: 1.288584452 | L22: 525.7170735 | M22: 16814.37054 | N22: 554.8852249 | O22: 17237.01421 | P22: 0 | S22: 0 | T22: 0 | X22: 0 | Y22: 0 | Z22: 0 | AC22: 0 | AD22: 0 | AE22: 0 | AF22: 0 | AG22: 0 | AH22: 0 | AI22: 0 | AJ22: 0 | AK22: 0 | AL22: 0 | CG22: 0
A23: 22 | E23: ב) | F23: פיקדונות במט"ח עד שלושה חודשים | J23: 0 | K23: 0 | L23: 0 | M23: 0 | N23: 0 | P23: 0 | S23: 0 | T23: 0 | X23: 0 | Y23: 0 | Z23: 0 | AC23: 0 | AD23: 0 | AE23: 0 | AF23: 0 | AG23: 0 | AH23: 0 | AI23: 0 | AJ23: 0 | AK23: 0 | AL23: 0 | CG23: 0
A24: 23 | AC24: 0 | AD24: 0 | AE24: 0 | AF24: 0 | AG24: 0 | AH24: 0 | AI24: 0 | AJ24: 0 | AK24: 0 | AL24: 0 | CG24: 0
A25: 24 | C25: ב. | D25: ניירות ערך (למעט בחברות מוחזקות) | J25: 57298715.48 | K25: 3312.68626 | L25: 687610.8246 | M25: 17310108.17 | N25: 571244.8909 | O25: 16528750.37 | P25: 823496.0819 | Q25: 4486786.89 | R25: 1168615.97 | S25: 2347283.111 | T25: 628867.233 | U25: 303342.57 | V25: 254874.3 | W25: 90217.68 | X25: 40275.10696 | Y25: 48572.40808 | Z25: 91678.86873 | AA25: 17791.15 | AB25: 227711.28 | AC25: 1903180.182 | AD25: 721294.6405 | AE25: 1054905.356 | AF25: 1537321.093 | AG25: 665900.2405 | AH25: 38202.50771 | AI25: 103132.1595 | AJ25: 180988.1541 | AK25: 821658.8669 | AL25: 287881.2895 | AM25: 323189.93 | AN25: 17661.08 | AO25: 228702.28 | AP25: 52212.19 | AQ25: 59161.93 | AR25: 74829.74 | AS25: 0 | AT25: 0 | AU25: 0 | AV25: 0 | AW25: 0 | AX25: 0 | AY25: 0 | AZ25: 0 | BA25: 0 | BB25: 0 | BC25: 0 | BD25: 0 | BE25: 0 | BF25: 0 | BG25: 0 | BH25: 0 | BI25: 0 | BJ25: 0 | BK25: 0 | BL25: 0 | BM25: 0 | BN25: 0 | BO25: 0 | BP25: 0 | BQ25: 0 | BR25: 0 | BS25: 0 | BT25: 0 | BU25: 0 | BV25: 0 | BW25: 0 | BX25: 0 | BY25: 0 | BZ25: 0 | CA25: 0 | CB25: 0 | CC25: 0 | CD25: 0 | CE25: 0 | CF25: 0 | CG25: 3597954.25
A26: 25 | D26: (1 | E26: אגרות חוב ממשלתיות: | J26: 12928064.55 | K26: 2249.752349 | L26: 253954.7273 | M26: 3440187.115 | N26: 113528.4248 | O26: 2986214.7 | P26: 374732.396 | Q26: 1421004.52 | R26: 437719.29 | S26: 258554.0507 | T26: 626283.6554 | U26: 15457.89 | V26: 254491.77 | W26: 109.65 | X26: 40109.64458 | Y26: 22102.90402 | Z26: 10098.45926 | AA26: 241.94 | AB26: 0 | AC26: 364160.2467 | AD26: 187965.7051 | AE26: 355160.0836 | AF26: 344395.0698 | AG26: 240866.3875 | AH26: 7309.783258 | AI26: 26875.71487 | AJ26: 60934.15641 | AK26: 184070.3702 | AL26: 104131.1025 | AM26: 0 | AN26: 0 | AO26: 0 | AP26: 0 | AQ26: 0 | AR26: 0 | AS26: 0 | AT26: 0 | AU26: 0 | AV26: 0 | AW26: 0 | AX26: 0 | AY26: 0 | AZ26: 0 | BA26: 0 | BB26: 0 | BC26: 0 | BD26: 0 | BE26: 0 | BF26: 0 | BG26: 0 | BH26: 0 | BI26: 0 | BJ26: 0 | BK26: 0 | BL26: 0 | BM26: 0 | BN26: 0 | BO26: 0 | BP26: 0 | BQ26: 0 | BR26: 0 | BS26: 0 | BT26: 0 | BU26: 0 | BV26: 0 | BW26: 0 | BX26: 0 | BY26: 0 | BZ26: 0 | CA26: 0 | CB26: 0 | CC26: 0 | CD26: 0 | CE26: 0 | CF26: 0 | CG26: 795155.04
A27: 26 | E27: א) | F27: בישראל | J27: 12928064.55 | K27: 2249.752349 | L27: 253954.7273 | M27: 3440187.115 | N27: 113528.4248 | O27: 2986214.7 | P27: 374732.396 | Q27: 1421004.52 | R27: 437719.29 | S27: 258554.0507 | T27: 626283.6554 | U27: 15457.89 | V27: 254491.77 | W27: 109.65 | X27: 40109.64458 | Y27: 22102.90402 | Z27: 10098.45926 | AA27: 241.94 | AB27: 0 | AC27: 364160.2467 | AD27: 187965.7051 | AE27: 355160.0836 | AF27: 344395.0698 | AG27: 240866.3875 | AH27: 7309.783258 | AI27: 26875.71487 | AJ27: 60934.15641 | AK27: 184070.3702 | AL27: 104131.1025 | AM27: 0 | AN27: 0 | AO27: 0 | AP27: 0 | AQ27: 0 | AR27: 0 | AS27: 0 | AT27: 0 | AU27: 0 | AV27: 0 | AW27: 0 | AX27: 0 | AY27: 0 | AZ27: 0 | BA27: 0 | BB27: 0 | BC27: 0 | BD27: 0 | BE27: 0 | BF27: 0 | BG27: 0 | BH27: 0 | BI27: 0 | BJ27: 0 | BK27: 0 | BL27: 0 | BM27: 0 | BN27: 0 | BO27: 0 | BP27: 0 | BQ27: 0 | BR27: 0 | BS27: 0 | BT27: 0 | BU27: 0 | BV27: 0 | BW27: 0 | BX27: 0 | BY27: 0 | BZ27: 0 | CA27: 0 | CB27: 0 | CC27: 0 | CD27: 0 | CE27: 0 | CF27: 0 | CG27: 795155.04
A28: 27 | F28: (1) | G28: סחיר | J28: 12779684.39 | K28: 263.6418426 | L28: 107560.6784 | M28: 3440187.115 | N28: 113528.4248 | O28: 2986214.7 | P28: 374732.396 | Q28: 1421004.52 | R28: 437719.29 | S28: 258554.0507 | T28: 626283.6554 | U28: 15457.89 | V28: 254491.77 | W28: 109.65 | X28: 40109.64458 | Y28: 22102.90402 | Z28: 10098.45926 | AA28: 241.94 | AB28: 0 | AC28: 364160.2467 | AD28: 187965.7051 | AE28: 355160.0836 | AF28: 344395.0698 | AG28: 240866.3875 | AH28: 7309.783258 | AI28: 26875.71487 | AJ28: 60934.15641 | AK28: 184070.3702 | AL28: 104131.1025 | AM28: 0 | AN28: 0 | AO28: 0 | AP28: 0 | AQ28: 0 | AR28: 0 | AS28: 0 | AT28: 0 | AU28: 0 | AV28: 0 | AW28: 0 | AX28: 0 | AY28: 0 | AZ28: 0 | BA28: 0 | BB28: 0 | BC28: 0 | BD28: 0 | BE28: 0 | BF28: 0 | BG28: 0 | BH28: 0 | BI28: 0 | BJ28: 0 | BK28: 0 | BL28: 0 | BM28: 0 | BN28: 0 | BO28: 0 | BP28: 0 | BQ28: 0 | BR28: 0 | BS28: 0 | BT28: 0 | BU28: 0 | BV28: 0 | BW28: 0 | BX28: 0 | BY28: 0 | BZ28: 0 | CA28: 0 | CB28: 0 | CC28: 0 | CD28: 0 | CE28: 0 | CF28: 0 | CG28: 795155.04
A29: 28 | G29: (א) | H29: צמוד מדד | J29: 6334010.75 | K29: 88.67039586 | L29: 36175.77484 | M29: 1157034.674 | N29: 38182.90098 | O29: 2447125.93 | P29: 54748.0373 | Q29: 633669.81 | R29: 224974.2 | S29: 0 | T29: 0 | V29: 91784.89 | W29: 72.72 | X29: 0 | Y29: 3229.212703 | Z29: 0 | AC29: 307487.0568 | AD29: 113285.676 | AE29: 224042.8108 | AF29: 167720.2952 | AG29: 119522.9879 | AH29: 6172.183154 | AI29: 16197.81398 | AJ29: 38438.60924 | AK29: 89642.21483 | AL29: 51672.05206 | CG29: 512742.23
A30: 29 | G30: (ג) | H30: לא צמוד בריבית קבועה | J30: 4366347.34 | K30: 133.2650415 | L30: 54369.5118 | M30: 1738937.469 | N30: 57386.07381 | O30: 401418.52 | P30: 254159.9225 | Q30: 675881.74 | R30: 173070.26 | S30: 27121.76336 | T30: 10213.0749 | U30: 1627.54 | V30: 122750.11 | W30: 22.71 | X30: 654.0850954 | Y30: 14991.15751 | Z30: 1059.306639 | AA30: 190.13 | AC30: 35717.38545 | AD30: 59950.3485 | AE30: 113693.6513 | AF30: 144327.4067 | AG30: 103881.6951 | AH30: 716.954551 | AI30: 8571.821499 | AJ30: 19506.20874 | AK30: 77139.31331 | AL30: 44910.02486 | CG30: 223945.89
A31: 30 | G31: (ד) | H31: לא צמוד בריבית משתנה | J31: 580183.96 | K31: 20.3010246 | L31: 8282.418137 | M31: 264902.2726 | N31: 8741.948251 | O31: 42747.83 | P31: 40422.70102 | Q31: 65941.72 | R31: 16471.55 | S31: 3743.171312 | T31: 0 | U31: 221.63 | V31: 20418.89 | W31: 3.55 | X31: 0 | Y31: 2384.258981 | Z31: 146.1986881 | AA31: 29.91 | AC31: 4445.476025 | AD31: 8863.656546 | AE31: 8886.303415 | AF31: 19822.94311 | AG31: 10689.94448 | AH31: 89.23397465 | AI31: 1267.343454 | AJ31: 1524.606585 | AK31: 10594.85689 | AL31: 4621.46552 | CG31: 34899.78
A32: 31 | G32: (ה) | H32: צמוד מט"ח | J32: 0 | K32: 0 | L32: 0 | M32: 0 | N32: 0 | P32: 0 | S32: 0 | T32: 0 | X32: 0 | Y32: 0 | Z32: 0 | AC32: 0 | AD32: 0 | AE32: 0 | AF32: 0 | AG32: 0 | AH32: 0 | AI32: 0 | AJ32: 0 | AK32: 0 | AL32: 0 | CG32: 0
A33: 32 | G33: (ו) | H33: מק"מ | J33: 1499142.34 | K33: 21.40538064 | L33: 8732.973649 | M33: 279312.6992 | N33: 9217.501754 | O33: 94922.42 | P33: 25401.73518 | Q33: 45511.25 | R33: 23203.28 | S33: 227689.1161 | T33: 616070.5805 | U33: 13608.72 | V33: 19537.88 | W33: 10.67 | X33: 39455.55949 | Y33: 1498.274824 | Z33: 8892.953936 | AA33: 21.9 | AC33: 16510.32842 | AD33: 5866.024071 | AE33: 8537.318166 | AF33: 12524.42478 | AG33: 6771.759903 | AH33: 331.4115787 | AI33: 838.7359291 | AJ33: 1464.731834 | AK33: 6693.985219 | AL33: 2927.560097 | CG33: 23567.14
A34: 33 | F34: (2) | G34: לא סחיר | J34: 148380.1594 | K34: 1986.110507 | L34: 146394.0489 | M34: 0 | N34: 0 | O34: 0 | P34: 0 | Q34: 0 | R34: 0 | S34: 0 | T34: 0 | U34: 0 | V34: 0 | W34: 0 | X34: 0 | Y34: 0 | Z34: 0 | AA34: 0 | AB34: 0 | AC34: 0 | AD34: 0 | AE34: 0 | AF34: 0 | AG34: 0 | AH34: 0 | AI34: 0 | AJ34: 0 | AK34: 0 | AL34: 0 | AM34: 0 | AN34: 0 | AO34: 0 | AP34: 0 | AQ34: 0 | AR34: 0 | AS34: 0 | AT34: 0 | AU34: 0 | AV34: 0 | AW34: 0 | AX34: 0 | AY34: 0 | AZ34: 0 | BA34: 0 | BB34: 0 | BC34: 0 | BD34: 0 | BE34: 0 | BF34: 0 | BG34: 0 | BH34: 0 | BI34: 0 | BJ34: 0 | BK34: 0 | BL34: 0 | BM34: 0 | BN34: 0 | BO34: 0 | BP34: 0 | BQ34: 0 | BR34: 0 | BS34: 0 | BT34: 0 | BU34: 0 | BV34: 0 | BW34: 0 | BX34: 0 | BY34: 0 | BZ34: 0 | CA34: 0 | CB34: 0 | CC34: 0 | CD34: 0 | CE34: 0 | CF34: 0 | CG34: 0
A35: 34 | G35: (א) | H35: אג"ח מיועדות - הסכמי "חץ" כולל אג"ח של חברת החשמל | J35: 148380.1594 | K35: 1986.110507 | L35: 146394.0489 | M35: 0 | N35: 0 | P35: 0 | S35: 0 | T35: 0 | X35: 0 | Y35: 0 | Z35: 0 | AC35: 0 | AD35: 0 | AE35: 0 | AF35: 0 | AG35: 0 | AH35: 0 | AI35: 0 | AJ35: 0 | AK35: 0 | AL35: 0 | CG35: 0
A36: 35 | G36: (ב) | H36: אג"ח לא סחירות אחרות | J36: 0 | K36: 0 | L36: 0 | M36: 0 | N36: 0 | P36: 0 | S36: 0 | T36: 0 | X36: 0 | Y36: 0 | Z36: 0 | AC36: 0 | AD36: 0 | AE36: 0 | AF36: 0 | AG36: 0 | AH36: 0 | AI36: 0 | AJ36: 0 | AK36: 0 | AL36: 0 | CG36: 0
A37: 36 | E37: ב) | F37: בחו"ל | J37: 0 | K37: 0 | L37: 0 | M37: 0 | N37: 0 | O37: 0 | P37: 0 | Q37: 0 | R37: 0 | S37: 0 | T37: 0 | U37: 0 | V37: 0 | W37: 0 | X37: 0 | Y37: 0 | Z37: 0 | AA37: 0 | AB37: 0 | AC37: 0 | AD37: 0 | AE37: 0 | AF37: 0 | AG37: 0 | AH37: 0 | AI37: 0 | AJ37: 0 | AK37: 0 | AL37: 0 | AM37: 0 | AN37: 0 | AO37: 0 | AP37: 0 | AQ37: 0 | AR37: 0 | AS37: 0 | AT37: 0 | AU37: 0 | AV37: 0 | AW37: 0 | AX37: 0 | AY37: 0 | AZ37: 0 | BA37: 0 | BB37: 0 | BC37: 0 | BD37: 0 | BE37: 0 | BF37: 0 | BG37: 0 | BH37: 0 | BI37: 0 | BJ37: 0 | BK37: 0 | BL37: 0 | BM37: 0 | BN37: 0 | BO37: 0 | BP37: 0 | BQ37: 0 | BR37: 0 | BS37: 0 | BT37: 0 | BU37: 0 | BV37: 0 | BW37: 0 | BX37: 0 | BY37: 0 | BZ37: 0 | CA37: 0 | CB37: 0 | CC37: 0 | CD37: 0 | CE37: 0 | CF37: 0 | CG37: 0
A38: 37 | F38: (1) | G38: סחיר | J38: 0 | K38: 0 | L38: 0 | M38: 0 | N38: 0 | O38: 0 | P38: 0 | Q38: 0 | R38: 0 | S38: 0 | T38: 0 | U38: 0 | V38: 0 | W38: 0 | X38: 0 | Y38: 0 | Z38: 0 | AA38: 0 | AB38: 0 | AC38: 0 | AD38: 0 | AE38: 0 | AF38: 0 | AG38: 0 | AH38: 0 | AI38: 0 | AJ38: 0 | AK38: 0 | AL38: 0 | AM38: 0 | AN38: 0 | AO38: 0 | AP38: 0 | AQ38: 0 | AR38: 0 | AS38: 0 | AT38: 0 | AU38: 0 | AV38: 0 | AW38: 0 | AX38: 0 | AY38: 0 | AZ38: 0 | BA38: 0 | BB38: 0 | BC38: 0 | BD38: 0 | BE38: 0 | BF38: 0 | BG38: 0 | BH38: 0 | BI38: 0 | BJ38: 0 | BK38: 0 | BL38: 0 | BM38: 0 | BN38: 0 | BO38: 0 | BP38: 0 | BQ38: 0 | BR38: 0 | BS38: 0 | BT38: 0 | BU38: 0 | BV38: 0 | BW38: 0 | BX38: 0 | BY38: 0 | BZ38: 0 | CA38: 0 | CB38: 0 | CC38: 0 | CD38: 0 | CE38: 0 | CF38: 0 | CG38: 0
A39: 38 | G39: (א) | H39: ממשלת ישראל שהונפקו בחו"ל | J39: 0 | K39: 0 | L39: 0 | M39: 0 | N39: 0 | P39: 0 | S39: 0 | T39: 0 | X39: 0 | Y39: 0 | Z39: 0 | AC39: 0 | AD39: 0 | AE39: 0 | AF39: 0 | AG39: 0 | AH39: 0 | AI39: 0 | AJ39: 0 | AK39: 0 | AL39: 0 | CG39: 0
A40: 39 | G40: (ב) | H40: שהנפיקה ממשלה זרה | J40: 0 | K40: 0 | L40: 0 | M40: 0 | N40: 0 | P40: 0 | S40: 0 | T40: 0 | X40: 0 | Y40: 0 | Z40: 0 | AC40: 0 | AD40: 0 | AE40: 0 | AF40: 0 | AG40: 0 | AH40: 0 | AI40: 0 | AJ40: 0 | AK40: 0 | AL40: 0 | CG40: 0
A41: 40 | F41: (2) | G41: לא סחיר | J41: 0 | K41: 0 | L41: 0 | M41: 0 | N41: 0 | O41: 0 | P41: 0 | Q41: 0 | R41: 0 | S41: 0 | T41: 0 | U41: 0 | V41: 0 | W41: 0 | X41: 0 | Y41: 0 | Z41: 0 | AA41: 0 | AB41: 0 | AC41: 0 | AD41: 0 | AE41: 0 | AF41: 0 | AG41: 0 | AH41: 0 | AI41: 0 | AJ41: 0 | AK41: 0 | AL41: 0 | AM41: 0 | AN41: 0 | AO41: 0 | AP41: 0 | AQ41: 0 | AR41: 0 | AS41: 0 | AT41: 0 | AU41: 0 | AV41: 0 | AW41: 0 | AX41: 0 | AY41: 0 | AZ41: 0 | BA41: 0 | BB41: 0 | BC41: 0 | BD41: 0 | BE41: 0 | BF41: 0 | BG41: 0 | BH41: 0 | BI41: 0 | BJ41: 0 | BK41: 0 | BL41: 0 | BM41: 0 | BN41: 0 | BO41: 0 | BP41: 0 | BQ41: 0 | BR41: 0 | BS41: 0 | BT41: 0 | BU41: 0 | BV41: 0 | BW41: 0 | BX41: 0 | BY41: 0 | BZ41: 0 | CA41: 0 | CB41: 0 | CC41: 0 | CD41: 0 | CE41: 0 | CF41: 0 | CG41: 0
A42: 41 | G42: (א) | H42: ממשלת ישראל שהונפקו בחו"ל | J42: 0 | K42: 0 | L42: 0 | M42: 0 | N42: 0 | P42: 0 | S42: 0 | T42: 0 | X42: 0 | Y42: 0 | Z42: 0 | AC42: 0 | AD42: 0 | AE42: 0 | AF42: 0 | AG42: 0 | AH42: 0 | AI42: 0 | AJ42: 0 | AK42: 0 | AL42: 0 | CG42: 0
A43: 42 | G43: (ב) | H43: שהנפיקה ממשלה זרה | J43: 0 | K43: 0 | L43: 0 | M43: 0 | N43: 0 | P43: 0 | S43: 0 | T43: 0 | X43: 0 | Y43: 0 | Z43: 0 | AC43: 0 | AD43: 0 | AE43: 0 | AF43: 0 | AG43: 0 | AH43: 0 | AI43: 0 | AJ43: 0 | AK43: 0 | AL43: 0 | CG43: 0
A44: 43 | AC44: 0 | AD44: 0 | AE44: 0 | AF44: 0 | AG44: 0 | AH44: 0 | AI44: 0 | AJ44: 0 | AK44: 0 | AL44: 0 | CG44: 0
A45: 44 | D45: (2 | E45: תעודות חוב מסחריות: | J45: 0 | K45: 0 | L45: 0 | M45: 0 | N45: 0 | O45: 0 | P45: 0 | Q45: 0 | R45: 0 | S45: 0 | T45: 0 | U45: 0 | V45: 0 | W45: 0 | X45: 0 | Y45: 0 | Z45: 0 | AA45: 0 | AB45: 0 | AC45: 0 | AD45: 0 | AE45: 0 | AF45: 0 | AG45: 0 | AH45: 0 | AI45: 0 | AJ45: 0 | AK45: 0 | AL45: 0 | AM45: 0 | AN45: 0 | AO45: 0 | AP45: 0 | AQ45: 0 | AR45: 0 | AS45: 0 | AT45: 0 | AU45: 0 | AV45: 0 | AW45: 0 | AX45: 0 | AY45: 0 | AZ45: 0 | BA45: 0 | BB45: 0 | BC45: 0 | BD45: 0 | BE45: 0 | BF45: 0 | BG45: 0 | BH45: 0 | BI45: 0 | BJ45: 0 | BK45: 0 | BL45: 0 | BM45: 0 | BN45: 0 | BO45: 0 | BP45: 0 | BQ45: 0 | BR45: 0 | BS45: 0 | BT45: 0 | BU45: 0 | BV45: 0 | BW45: 0 | BX45: 0 | BY45: 0 | BZ45: 0 | CA45: 0 | CB45: 0 | CC45: 0 | CD45: 0 | CE45: 0 | CF45: 0 | CG45: 0
A46: 45 | E46: א) | F46: בישראל | J46: 0 | K46: 0 | L46: 0 | M46: 0 | N46: 0 | O46: 0 | P46: 0 | Q46: 0 | R46: 0 | S46: 0 | T46: 0 | U46: 0 | V46: 0 | W46: 0 | X46: 0 | Y46: 0 | Z46: 0 | AA46: 0 | AB46: 0 | AC46: 0 | AD46: 0 | AE46: 0 | AF46: 0 | AG46: 0 | AH46: 0 | AI46: 0 | AJ46: 0 | AK46: 0 | AL46: 0 | AM46: 0 | AN46: 0 | AO46: 0 | AP46: 0 | AQ46: 0 | AR46: 0 | AS46: 0 | AT46: 0 | AU46: 0 | AV46: 0 | AW46: 0 | AX46: 0 | AY46: 0 | AZ46: 0 | BA46: 0 | BB46: 0 | BC46: 0 | BD46: 0 | BE46: 0 | BF46: 0 | BG46: 0 | BH46: 0 | BI46: 0 | BJ46: 0 | BK46: 0 | BL46: 0 | BM46: 0 | BN46: 0 | BO46: 0 | BP46: 0 | BQ46: 0 | BR46: 0 | BS46: 0 | BT46: 0 | BU46: 0 | BV46: 0 | BW46: 0 | BX46: 0 | BY46: 0 | BZ46: 0 | CA46: 0 | CB46: 0 | CC46: 0 | CD46: 0 | CE46: 0 | CF46: 0 | CG46: 0
A47: 46 | F47: (1) | G47: סחיר | J47: 0 | K47: 0 | L47: 0 | M47: 0 | N47: 0 | O47: 0 | P47: 0 | Q47: 0 | R47: 0 | S47: 0 | T47: 0 | U47: 0 | V47: 0 | W47: 0 | X47: 0 | Y47: 0 | Z47: 0 | AA47: 0 | AB47: 0 | AC47: 0 | AD47: 0 | AE47: 0 | AF47: 0 | AG47: 0 | AH47: 0 | AI47: 0 | AJ47: 0 | AK47: 0 | AL47: 0 | AM47: 0 | AN47: 0 | AO47: 0 | AP47: 0 | AQ47: 0 | AR47: 0 | AS47: 0 | AT47: 0 | AU47: 0 | AV47: 0 | AW47: 0 | AX47: 0 | AY47: 0 | AZ47: 0 | BA47: 0 | BB47: 0 | BC47: 0 | BD47: 0 | BE47: 0 | BF47: 0 | BG47: 0 | BH47: 0 | BI47: 0 | BJ47: 0 | BK47: 0 | BL47: 0 | BM47: 0 | BN47: 0 | BO47: 0 | BP47: 0 | BQ47: 0 | BR47: 0 | BS47: 0 | BT47: 0 | BU47: 0 | BV47: 0 | BW47: 0 | BX47: 0 | BY47: 0 | BZ47: 0 | CA47: 0 | CB47: 0 | CC47: 0 | CD47: 0 | CE47: 0 | CF47: 0 | CG47: 0
A48: 47 | G48: (א) | H48: דרוג AA- ומעלה | J48: 0 | K48: 0 | L48: 0 | M48: 0 | N48: 0 | O48: 0 | P48: 0 | Q48: 0 | R48: 0 | S48: 0 | T48: 0 | U48: 0 | V48: 0 | W48: 0 | X48: 0 | Y48: 0 | Z48: 0 | AA48: 0 | AB48: 0 | AC48: 0 | AD48: 0 | AE48: 0 | AF48: 0 | AG48: 0 | AH48: 0 | AI48: 0 | AJ48: 0 | AK48: 0 | AL48: 0 | AM48: 0 | AN48: 0 | AO48: 0 | AP48: 0 | AQ48: 0 | AR48: 0 | AS48: 0 | AT48: 0 | AU48: 0 | AV48: 0 | AW48: 0 | AX48: 0 | AY48: 0 | AZ48: 0 | BA48: 0 | BB48: 0 | BC48: 0 | BD48: 0 | BE48: 0 | BF48: 0 | BG48: 0 | BH48: 0 | BI48: 0 | BJ48: 0 | BK48: 0 | BL48: 0 | BM48: 0 | BN48: 0 | BO48: 0 | BP48: 0 | BQ48: 0 | BR48: 0 | BS48: 0 | BT48: 0 | BU48: 0 | BV48: 0 | BW48: 0 | BX48: 0 | BY48: 0 | BZ48: 0 | CA48: 0 | CB48: 0 | CC48: 0 | CD48: 0 | CE48: 0 | CF48: 0 | CG48: 0
A49: 48 | H49: a | I49: צמוד מדד | J49: 0 | K49: 0 | L49: 0 | M49: 0 | N49: 0 | P49: 0 | S49: 0 | T49: 0 | X49: 0 | Y49: 0 | Z49: 0 | AC49: 0 | AD49: 0 | AE49: 0 | AF49: 0 | AG49: 0 | AH49: 0 | AI49: 0 | AJ49: 0 | AK49: 0 | AL49: 0 | CG49: 0
A50: 49 | H50: b | I50: לא צמוד | J50: 0 | K50: 0 | L50: 0 | M50: 0 | N50: 0 | P50: 0 | S50: 0 | T50: 0 | X50: 0 | Y50: 0 | Z50: 0 | AC50: 0 | AD50: 0 | AE50: 0 | AF50: 0 | AG50: 0 | AH50: 0 | AI50: 0 | AJ50: 0 | AK50: 0 | AL50: 0 | CG50: 0
A51: 50 | H51: c | I51: צמוד מט"ח | J51: 0 | K51: 0 | L51: 0 | M51: 0 | N51: 0 | P51: 0 | S51: 0 | T51: 0 | X51: 0 | Y51: 0 | Z51: 0 | AC51: 0 | AD51: 0 | AE51: 0 | AF51: 0 | AG51: 0 | AH51: 0 | AI51: 0 | AJ51: 0 | AK51: 0 | AL51: 0 | CG51: 0
A52: 51 | G52: (ב) | H52: דרוג BBB- ועד A+ | J52: 0 | K52: 0 | L52: 0 | M52: 0 | N52: 0 | O52: 0 | P52: 0 | Q52: 0 | R52: 0 | S52: 0 | T52: 0 | U52: 0 | V52: 0 | W52: 0 | X52: 0 | Y52: 0 | Z52: 0 | AA52: 0 | AB52: 0 | AC52: 0 | AD52: 0 | AE52: 0 | AF52: 0 | AG52: 0 | AH52: 0 | AI52: 0 | AJ52: 0 | AK52: 0 | AL52: 0 | AM52: 0 | AN52: 0 | AO52: 0 | AP52: 0 | AQ52: 0 | AR52: 0 | AS52: 0 | AT52: 0 | AU52: 0 | AV52: 0 | AW52: 0 | AX52: 0 | AY52: 0 | AZ52: 0 | BA52: 0 | BB52: 0 | BC52: 0 | BD52: 0 | BE52: 0 | BF52: 0 | BG52: 0 | BH52: 0 | BI52: 0 | BJ52: 0 | BK52: 0 | BL52: 0 | BM52: 0 | BN52: 0 | BO52: 0 | BP52: 0 | BQ52: 0 | BR52: 0 | BS52: 0 | BT52: 0 | BU52: 0 | BV52: 0 | BW52: 0 | BX52: 0 | BY52: 0 | BZ52: 0 | CA52: 0 | CB52: 0 | CC52: 0 | CD52: 0 | CE52: 0 | CF52: 0 | CG52: 0
A53: 52 | H53: a | I53: צמוד מדד | J53: 0 | K53: 0 | L53: 0 | M53: 0 | N53: 0 | P53: 0 | S53: 0 | T53: 0 | X53: 0 | Y53: 0 | Z53: 0 | AC53: 0 | AD53: 0 | AE53: 0 | AF53: 0 | AG53: 0 | AH53: 0 | AI53: 0 | AJ53: 0 | AK53: 0 | AL53: 0 | CG53: 0
A54: 53 | H54: b | I54: לא צמוד | J54: 0 | K54: 0 | L54: 0 | M54: 0 | N54: 0 | P54: 0 | S54: 0 | T54: 0 | X54: 0 | Y54: 0 | Z54: 0 | AC54: 0 | AD54: 0 | AE54: 0 | AF54: 0 | AG54: 0 | AH54: 0 | AI54: 0 | AJ54: 0 | AK54: 0 | AL54: 0 | CG54: 0
A55: 54 | H55: c | I55: צמוד מט"ח | J55: 0 | K55: 0 | L55: 0 | M55: 0 | N55: 0 | P55: 0 | S55: 0 | T55: 0 | X55: 0 | Y55: 0 | Z55: 0 | AC55: 0 | AD55: 0 | AE55: 0 | AF55: 0 | AG55: 0 | AH55: 0 | AI55: 0 | AJ55: 0 | AK55: 0 | AL55: 0 | CG55: 0
A56: 55 | G56: (ג) | H56: דרוג נמוך מ- BBB- או לא מדורג | J56: 0 | K56: 0 | L56: 0 | M56: 0 | N56: 0 | O56: 0 | P56: 0 | Q56: 0 | R56: 0 | S56: 0 | T56: 0 | U56: 0 | V56: 0 | W56: 0 | X56: 0 | Y56: 0 | Z56: 0 | AA56: 0 | AB56: 0 | AC56: 0 | AD56: 0 | AE56: 0 | AF56: 0 | AG56: 0 | AH56: 0 | AI56: 0 | AJ56: 0 | AK56: 0 | AL56: 0 | AM56: 0 | AN56: 0 | AO56: 0 | AP56: 0 | AQ56: 0 | AR56: 0 | AS56: 0 | AT56: 0 | AU56: 0 | AV56: 0 | AW56: 0 | AX56: 0 | AY56: 0 | AZ56: 0 | BA56: 0 | BB56: 0 | BC56: 0 | BD56: 0 | BE56: 0 | BF56: 0 | BG56: 0 | BH56: 0 | BI56: 0 | BJ56: 0 | BK56: 0 | BL56: 0 | BM56: 0 | BN56: 0 | BO56: 0 | BP56: 0 | BQ56: 0 | BR56: 0 | BS56: 0 | BT56: 0 | BU56: 0 | BV56: 0 | BW56: 0 | BX56: 0 | BY56: 0 | BZ56: 0 | CA56: 0 | CB56: 0 | CC56: 0 | CD56: 0 | CE56: 0 | CF56: 0 | CG56: 0
A57: 56 | H57: a | I57: צמוד מדד | J57: 0 | K57: 0 | L57: 0 | M57: 0 | N57: 0 | P57: 0 | S57: 0 | T57: 0 | X57: 0 | Y57: 0 | Z57: 0 | AC57: 0 | AD57: 0 | AE57: 0 | AF57: 0 | AG57: 0 | AH57: 0 | AI57: 0 | AJ57: 0 | AK57: 0 | AL57: 0 | CG57: 0
A58: 57 | H58: b | I58: לא צמוד | J58: 0 | K58: 0 | L58: 0 | M58: 0 | N58: 0 | P58: 0 | S58: 0 | T58: 0 | X58: 0 | Y58: 0 | Z58: 0 | AC58: 0 | AD58: 0 | AE58: 0 | AF58: 0 | AG58: 0 | AH58: 0 | AI58: 0 | AJ58: 0 | AK58: 0 | AL58: 0 | CG58: 0
A59: 58 | H59: c | I59: צמוד מט"ח | J59: 0 | K59: 0 | L59: 0 | M59: 0 | N59: 0 | P59: 0 | S59: 0 | T59: 0 | X59: 0 | Y59: 0 | Z59: 0 | AC59: 0 | AD59: 0 | AE59: 0 | AF59: 0 | AG59: 0 | AH59: 0 | AI59: 0 | AJ59: 0 | AK59: 0 | AL59: 0 | CG59: 0
A60: 59 | F60: (2) | G60: לא סחיר | J60: 0 | K60: 0 | L60: 0 | M60: 0 | N60: 0 | O60: 0 | P60: 0 | Q60: 0 | R60: 0 | S60: 0 | T60: 0 | U60: 0 | V60: 0 | W60: 0 | X60: 0 | Y60: 0 | Z60: 0 | AA60: 0 | AB60: 0 | AC60: 0 | AD60: 0 | AE60: 0 | AF60: 0 | AG60: 0 | AH60: 0 | AI60: 0 | AJ60: 0 | AK60: 0 | AL60: 0 | AM60: 0 | AN60: 0 | AO60: 0 | AP60: 0 | AQ60: 0 | AR60: 0 | AS60: 0 | AT60: 0 | AU60: 0 | AV60: 0 | AW60: 0 | AX60: 0 | AY60: 0 | AZ60: 0 | BA60: 0 | BB60: 0 | BC60: 0 | BD60: 0 | BE60: 0 | BF60: 0 | BG60: 0 | BH60: 0 | BI60: 0 | BJ60: 0 | BK60: 0 | BL60: 0 | BM60: 0 | BN60: 0 | BO60: 0 | BP60: 0 | BQ60: 0 | BR60: 0 | BS60: 0 | BT60: 0 | BU60: 0 | BV60: 0 | BW60: 0 | BX60: 0 | BY60: 0 | BZ60: 0 | CA60: 0 | CB60: 0 | CC60: 0 | CD60: 0 | CE60: 0 | CF60: 0 | CG60: 0
A61: 60 | G61: (א) | H61: =$H$48 -> דרוג AA- ומעלה | J61: 0 | K61: 0 | L61: 0 | M61: 0 | N61: 0 | O61: 0 | P61: 0 | Q61: 0 | R61: 0 | S61: 0 | T61: 0 | U61: 0 | V61: 0 | W61: 0 | X61: 0 | Y61: 0 | Z61: 0 | AA61: 0 | AB61: 0 | AC61: 0 | AD61: 0 | AE61: 0 | AF61: 0 | AG61: 0 | AH61: 0 | AI61: 0 | AJ61: 0 | AK61: 0 | AL61: 0 | AM61: 0 | AN61: 0 | AO61: 0 | AP61: 0 | AQ61: 0 | AR61: 0 | AS61: 0 | AT61: 0 | AU61: 0 | AV61: 0 | AW61: 0 | AX61: 0 | AY61: 0 | AZ61: 0 | BA61: 0 | BB61: 0 | BC61: 0 | BD61: 0 | BE61: 0 | BF61: 0 | BG61: 0 | BH61: 0 | BI61: 0 | BJ61: 0 | BK61: 0 | BL61: 0 | BM61: 0 | BN61: 0 | BO61: 0 | BP61: 0 | BQ61: 0 | BR61: 0 | BS61: 0 | BT61: 0 | BU61: 0 | BV61: 0 | BW61: 0 | BX61: 0 | BY61: 0 | BZ61: 0 | CA61: 0 | CB61: 0 | CC61: 0 | CD61: 0 | CE61: 0 | CF61: 0 | CG61: 0
A62: 61 | H62: a | I62: צמוד מדד | J62: 0 | K62: 0 | L62: 0 | M62: 0 | N62: 0 | P62: 0 | S62: 0 | T62: 0 | X62: 0 | Y62: 0 | Z62: 0 | AC62: 0 | AD62: 0 | AE62: 0 | AF62: 0 | AG62: 0 | AH62: 0 | AI62: 0 | AJ62: 0 | AK62: 0 | AL62: 0 | CG62: 0
A63: 62 | H63: b | I63: לא צמוד | J63: 0 | K63: 0 | L63: 0 | M63: 0 | N63: 0 | P63: 0 | S63: 0 | T63: 0 | X63: 0 | Y63: 0 | Z63: 0 | AC63: 0 | AD63: 0 | AE63: 0 | AF63: 0 | AG63: 0 | AH63: 0 | AI63: 0 | AJ63: 0 | AK63: 0 | AL63: 0 | CG63: 0
A64: 63 | H64: c | I64: צמוד מט"ח | J64: 0 | K64: 0 | L64: 0 | M64: 0 | N64: 0 | P64: 0 | S64: 0 | T64: 0 | X64: 0 | Y64: 0 | Z64: 0 | AC64: 0 | AD64: 0 | AE64: 0 | AF64: 0 | AG64: 0 | AH64: 0 | AI64: 0 | AJ64: 0 | AK64: 0 | AL64: 0 | CG64: 0
A65: 64 | G65: (ב) | H65: =$H$52 -> דרוג BBB- ועד A+ | J65: 0 | K65: 0 | L65: 0 | M65: 0 | N65: 0 | O65: 0 | P65: 0 | Q65: 0 | R65: 0 | S65: 0 | T65: 0 | U65: 0 | V65: 0 | W65: 0 | X65: 0 | Y65: 0 | Z65: 0 | AA65: 0 | AB65: 0 | AC65: 0 | AD65: 0 | AE65: 0 | AF65: 0 | AG65: 0 | AH65: 0 | AI65: 0 | AJ65: 0 | AK65: 0 | AL65: 0 | AM65: 0 | AN65: 0 | AO65: 0 | AP65: 0 | AQ65: 0 | AR65: 0 | AS65: 0 | AT65: 0 | AU65: 0 | AV65: 0 | AW65: 0 | AX65: 0 | AY65: 0 | AZ65: 0 | BA65: 0 | BB65: 0 | BC65: 0 | BD65: 0 | BE65: 0 | BF65: 0 | BG65: 0 | BH65: 0 | BI65: 0 | BJ65: 0 | BK65: 0 | BL65: 0 | BM65: 0 | BN65: 0 | BO65: 0 | BP65: 0 | BQ65: 0 | BR65: 0 | BS65: 0 | BT65: 0 | BU65: 0 | BV65: 0 | BW65: 0 | BX65: 0 | BY65: 0 | BZ65: 0 | CA65: 0 | CB65: 0 | CC65: 0 | CD65: 0 | CE65: 0 | CF65: 0 | CG65: 0
A66: 65 | H66: a | I66: צמוד מדד | J66: 0 | K66: 0 | L66: 0 | M66: 0 | N66: 0 | P66: 0 | S66: 0 | T66: 0 | X66: 0 | Y66: 0 | Z66: 0 | AC66: 0 | AD66: 0 | AE66: 0 | AF66: 0 | AG66: 0 | AH66: 0 | AI66: 0 | AJ66: 0 | AK66: 0 | AL66: 0 | CG66: 0
A67: 66 | H67: b | I67: לא צמוד | J67: 0 | K67: 0 | L67: 0 | M67: 0 | N67: 0 | P67: 0 | S67: 0 | T67: 0 | X67: 0 | Y67: 0 | Z67: 0 | AC67: 0 | AD67: 0 | AE67: 0 | AF67: 0 | AG67: 0 | AH67: 0 | AI67: 0 | AJ67: 0 | AK67: 0 | AL67: 0 | CG67: 0
A68: 67 | H68: c | I68: צמוד מט"ח | J68: 0 | K68: 0 | L68: 0 | M68: 0 | N68: 0 | P68: 0 | S68: 0 | T68: 0 | X68: 0 | Y68: 0 | Z68: 0 | AC68: 0 | AD68: 0 | AE68: 0 | AF68: 0 | AG68: 0 | AH68: 0 | AI68: 0 | AJ68: 0 | AK68: 0 | AL68: 0 | CG68: 0
A69: 68 | G69: (ג) | H69: בדרוג נמוך מ- BBB- או לא מדורג עם בטוחה מספקת | J69: 0 | K69: 0 | L69: 0 | M69: 0 | N69: 0 | O69: 0 | P69: 0 | Q69: 0 | R69: 0 | S69: 0 | T69: 0 | U69: 0 | V69: 0 | W69: 0 | X69: 0 | Y69: 0 | Z69: 0 | AA69: 0 | AB69: 0 | AC69: 0 | AD69: 0 | AE69: 0 | AF69: 0 | AG69: 0 | AH69: 0 | AI69: 0 | AJ69: 0 | AK69: 0 | AL69: 0 | AM69: 0 | AN69: 0 | AO69: 0 | AP69: 0 | AQ69: 0 | AR69: 0 | AS69: 0 | AT69: 0 | AU69: 0 | AV69: 0 | AW69: 0 | AX69: 0 | AY69: 0 | AZ69: 0 | BA69: 0 | BB69: 0 | BC69: 0 | BD69: 0 | BE69: 0 | BF69: 0 | BG69: 0 | BH69: 0 | BI69: 0 | BJ69: 0 | BK69: 0 | BL69: 0 | BM69: 0 | BN69: 0 | BO69: 0 | BP69: 0 | BQ69: 0 | BR69: 0 | BS69: 0 | BT69: 0 | BU69: 0 | BV69: 0 | BW69: 0 | BX69: 0 | BY69: 0 | BZ69: 0 | CA69: 0 | CB69: 0 | CC69: 0 | CD69: 0 | CE69: 0 | CF69: 0 | CG69: 0
A70: 69 | H70: a | I70: צמוד מדד | J70: 0 | K70: 0 | L70: 0 | M70: 0 | N70: 0 | P70: 0 | S70: 0 | T70: 0 | X70: 0 | Y70: 0 | Z70: 0 | AC70: 0 | AD70: 0 | AE70: 0 | AF70: 0 | AG70: 0 | AH70: 0 | AI70: 0 | AJ70: 0 | AK70: 0 | AL70: 0 | CG70: 0
A71: 70 | H71: b | I71: לא צמוד | J71: 0 | K71: 0 | L71: 0 | M71: 0 | N71: 0 | P71: 0 | S71: 0 | T71: 0 | X71: 0 | Y71: 0 | Z71: 0 | AC71: 0 | AD71: 0 | AE71: 0 | AF71: 0 | AG71: 0 | AH71: 0 | AI71: 0 | AJ71: 0 | AK71: 0 | AL71: 0 | CG71: 0
A72: 71 | H72: c | I72: צמוד מט"ח | J72: 0 | K72: 0 | L72: 0 | M72: 0 | N72: 0 | P72: 0 | S72: 0 | T72: 0 | X72: 0 | Y72: 0 | Z72: 0 | AC72: 0 | AD72: 0 | AE72: 0 | AF72: 0 | AG72: 0 | AH72: 0 | AI72: 0 | AJ72: 0 | AK72: 0 | AL72: 0 | CG72: 0
A73: 72 | G73: (ד) | H73: =$H$56 -> דרוג נמוך מ- BBB- או לא מדורג | J73: 0 | K73: 0 | L73: 0 | M73: 0 | N73: 0 | O73: 0 | P73: 0 | Q73: 0 | R73: 0 | S73: 0 | T73: 0 | U73: 0 | V73: 0 | W73: 0 | X73: 0 | Y73: 0 | Z73: 0 | AA73: 0 | AB73: 0 | AC73: 0 | AD73: 0 | AE73: 0 | AF73: 0 | AG73: 0 | AH73: 0 | AI73: 0 | AJ73: 0 | AK73: 0 | AL73: 0 | AM73: 0 | AN73: 0 | AO73: 0 | AP73: 0 | AQ73: 0 | AR73: 0 | AS73: 0 | AT73: 0 | AU73: 0 | AV73: 0 | AW73: 0 | AX73: 0 | AY73: 0 | AZ73: 0 | BA73: 0 | BB73: 0 | BC73: 0 | BD73: 0 | BE73: 0 | BF73: 0 | BG73: 0 | BH73: 0 | BI73: 0 | BJ73: 0 | BK73: 0 | BL73: 0 | BM73: 0 | BN73: 0 | BO73: 0 | BP73: 0 | BQ73: 0 | BR73: 0 | BS73: 0 | BT73: 0 | BU73: 0 | BV73: 0 | BW73: 0 | BX73: 0 | BY73: 0 | BZ73: 0 | CA73: 0 | CB73: 0 | CC73: 0 | CD73: 0 | CE73: 0 | CF73: 0 | CG73: 0
A74: 73 | H74: a | I74: צמוד מדד | J74: 0 | K74: 0 | L74: 0 | M74: 0 | N74: 0 | P74: 0 | S74: 0 | T74: 0 | X74: 0 | Y74: 0 | Z74: 0 | AC74: 0 | AD74: 0 | AE74: 0 | AF74: 0 | AG74: 0 | AH74: 0 | AI74: 0 | AJ74: 0 | AK74: 0 | AL74: 0 | CG74: 0
A75: 74 | H75: b | I75: לא צמוד | J75: 0 | K75: 0 | L75: 0 | M75: 0 | N75: 0 | P75: 0 | S75: 0 | T75: 0 | X75: 0 | Y75: 0 | Z75: 0 | AC75: 0 | AD75: 0 | AE75: 0 | AF75: 0 | AG75: 0 | AH75: 0 | AI75: 0 | AJ75: 0 | AK75: 0 | AL75: 0 | CG75: 0
A76: =A75+1 -> 75 | H76: c | I76: צמוד מט"ח | J76: 0 | K76: 0 | L76: 0 | M76: 0 | N76: 0 | P76: 0 | S76: 0 | T76: 0 | X76: 0 | Y76: 0 | Z76: 0 | AC76: 0 | AD76: 0 | AE76: 0 | AF76: 0 | AG76: 0 | AH76: 0 | AI76: 0 | AJ76: 0 | AK76: 0 | AL76: 0 | CG76: 0
A77: 76 | E77: ב) | F77: בחו"ל | J77: 0 | K77: 0 | L77: 0 | M77: 0 | N77: 0 | O77: 0 | P77: 0 | Q77: 0 | R77: 0 | S77: 0 | T77: 0 | U77: 0 | V77: 0 | W77: 0 | X77: 0 | Y77: 0 | Z77: 0 | AA77: 0 | AB77: 0 | AC77: 0 | AD77: 0 | AE77: 0 | AF77: 0 | AG77: 0 | AH77: 0 | AI77: 0 | AJ77: 0 | AK77: 0 | AL77: 0 | AM77: 0 | AN77: 0 | AO77: 0 | AP77: 0 | AQ77: 0 | AR77: 0 | AS77: 0 | AT77: 0 | AU77: 0 | AV77: 0 | AW77: 0 | AX77: 0 | AY77: 0 | AZ77: 0 | BA77: 0 | BB77: 0 | BC77: 0 | BD77: 0 | BE77: 0 | BF77: 0 | BG77: 0 | BH77: 0 | BI77: 0 | BJ77: 0 | BK77: 0 | BL77: 0 | BM77: 0 | BN77: 0 | BO77: 0 | BP77: 0 | BQ77: 0 | BR77: 0 | BS77: 0 | BT77: 0 | BU77: 0 | BV77: 0 | BW77: 0 | BX77: 0 | BY77: 0 | BZ77: 0 | CA77: 0 | CB77: 0 | CC77: 0 | CD77: 0 | CE77: 0 | CF77: 0 | CG77: 0
A78: 77 | F78: (1) | G78: סחיר - חברות ישראליות | J78: 0 | K78: 0 | L78: 0 | M78: 0 | N78: 0 | O78: 0 | P78: 0 | Q78: 0 | R78: 0 | S78: 0 | T78: 0 | U78: 0 | V78: 0 | W78: 0 | X78: 0 | Y78: 0 | Z78: 0 | AA78: 0 | AB78: 0 | AC78: 0 | AD78: 0 | AE78: 0 | AF78: 0 | AG78: 0 | AH78: 0 | AI78: 0 | AJ78: 0 | AK78: 0 | AL78: 0 | AM78: 0 | AN78: 0 | AO78: 0 | AP78: 0 | AQ78: 0 | AR78: 0 | AS78: 0 | AT78: 0 | AU78: 0 | AV78: 0 | AW78: 0 | AX78: 0 | AY78: 0 | AZ78: 0 | BA78: 0 | BB78: 0 | BC78: 0 | BD78: 0 | BE78: 0 | BF78: 0 | BG78: 0 | BH78: 0 | BI78: 0 | BJ78: 0 | BK78: 0 | BL78: 0 | BM78: 0 | BN78: 0 | BO78: 0 | BP78: 0 | BQ78: 0 | BR78: 0 | BS78: 0 | BT78: 0 | BU78: 0 | BV78: 0 | BW78: 0 | BX78: 0 | BY78: 0 | BZ78: 0 | CA78: 0 | CB78: 0 | CC78: 0 | CD78: 0 | CE78: 0 | CF78: 0 | CG78: 0
A79: 78 | G79: (א) | H79: דרוג A- ומעלה | J79: 0 | K79: 0 | L79: 0 | M79: 0 | N79: 0 | P79: 0 | S79: 0 | T79: 0 | X79: 0 | Y79: 0 | Z79: 0 | AC79: 0 | AD79: 0 | AE79: 0 | AF79: 0 | AG79: 0 | AH79: 0 | AI79: 0 | AJ79: 0 | AK79: 0 | AL79: 0 | CG79: 0
A80: 79 | G80: (ב) | H80: דרוג BBB- ועד BBB+ | J80: 0 | K80: 0 | L80: 0 | M80: 0 | N80: 0 | P80: 0 | S80: 0 | T80: 0 | X80: 0 | Y80: 0 | Z80: 0 | AC80: 0 | AD80: 0 | AE80: 0 | AF80: 0 | AG80: 0 | AH80: 0 | AI80: 0 | AJ80: 0 | AK80: 0 | AL80: 0 | CG80: 0
A81: 80 | G81: (ג) | H81: דרוג נמוך מ- BBB- או לא מדורג | J81: 0 | K81: 0 | L81: 0 | M81: 0 | N81: 0 | P81: 0 | S81: 0 | T81: 0 | X81: 0 | Y81: 0 | Z81: 0 | AC81: 0 | AD81: 0 | AE81: 0 | AF81: 0 | AG81: 0 | AH81: 0 | AI81: 0 | AJ81: 0 | AK81: 0 | AL81: 0 | CG81: 0
A82: 81 | F82: (2) | G82: לא סחיר - חברות ישראליות | J82: 0 | K82: 0 | L82: 0 | M82: 0 | N82: 0 | O82: 0 | P82: 0 | Q82: 0 | R82: 0 | S82: 0 | T82: 0 | U82: 0 | V82: 0 | W82: 0 | X82: 0 | Y82: 0 | Z82: 0 | AA82: 0 | AB82: 0 | AC82: 0 | AD82: 0 | AE82: 0 | AF82: 0 | AG82: 0 | AH82: 0 | AI82: 0 | AJ82: 0 | AK82: 0 | AL82: 0 | AM82: 0 | AN82: 0 | AO82: 0 | AP82: 0 | AQ82: 0 | AR82: 0 | AS82: 0 | AT82: 0 | AU82: 0 | AV82: 0 | AW82: 0 | AX82: 0 | AY82: 0 | AZ82: 0 | BA82: 0 | BB82: 0 | BC82: 0 | BD82: 0 | BE82: 0 | BF82: 0 | BG82: 0 | BH82: 0 | BI82: 0 | BJ82: 0 | BK82: 0 | BL82: 0 | BM82: 0 | BN82: 0 | BO82: 0 | BP82: 0 | BQ82: 0 | BR82: 0 | BS82: 0 | BT82: 0 | BU82: 0 | BV82: 0 | BW82: 0 | BX82: 0 | BY82: 0 | BZ82: 0 | CA82: 0 | CB82: 0 | CC82: 0 | CD82: 0 | CE82: 0 | CF82: 0 | CG82: 0
A83: 82 | G83: (א) | H83: =$H$79 -> דרוג A- ומעלה | J83: 0 | K83: 0 | L83: 0 | M83: 0 | N83: 0 | P83: 0 | S83: 0 | T83: 0 | X83: 0 | Y83: 0 | Z83: 0 | AC83: 0 | AD83: 0 | AE83: 0 | AF83: 0 | AG83: 0 | AH83: 0 | AI83: 0 | AJ83: 0 | AK83: 0 | AL83: 0 | CG83: 0
A84: 83 | G84: (ב) | H84: =$H$80 -> דרוג BBB- ועד BBB+ | J84: 0 | K84: 0 | L84: 0 | M84: 0 | N84: 0 | P84: 0 | S84: 0 | T84: 0 | X84: 0 | Y84: 0 | Z84: 0 | AC84: 0 | AD84: 0 | AE84: 0 | AF84: 0 | AG84: 0 | AH84: 0 | AI84: 0 | AJ84: 0 | AK84: 0 | AL84: 0 | CG84: 0
A85: 84 | G85: (ג) | H85: =$H$69 -> בדרוג נמוך מ- BBB- או לא מדורג עם בטוחה מספקת | J85: 0 | K85: 0 | L85: 0 | M85: 0 | N85: 0 | P85: 0 | S85: 0 | T85: 0 | X85: 0 | Y85: 0 | Z85: 0 | AC85: 0 | AD85: 0 | AE85: 0 | AF85: 0 | AG85: 0 | AH85: 0 | AI85: 0 | AJ85: 0 | AK85: 0 | AL85: 0 | CG85: 0
A86: 85 | G86: (ד) | H86: =H81 -> דרוג נמוך מ- BBB- או לא מדורג | J86: 0 | K86: 0 | L86: 0 | M86: 0 | N86: 0 | P86: 0 | S86: 0 | T86: 0 | X86: 0 | Y86: 0 | Z86: 0 | AC86: 0 | AD86: 0 | AE86: 0 | AF86: 0 | AG86: 0 | AH86: 0 | AI86: 0 | AJ86: 0 | AK86: 0 | AL86: 0 | CG86: 0
A87: 86 | F87: (3) | G87: סחיר - חברות זרות | J87: 0 | K87: 0 | L87: 0 | M87: 0 | N87: 0 | O87: 0 | P87: 0 | Q87: 0 | R87: 0 | S87: 0 | T87: 0 | U87: 0 | V87: 0 | W87: 0 | X87: 0 | Y87: 0 | Z87: 0 | AA87: 0 | AB87: 0 | AC87: 0 | AD87: 0 | AE87: 0 | AF87: 0 | AG87: 0 | AH87: 0 | AI87: 0 | AJ87: 0 | AK87: 0 | AL87: 0 | AM87: 0 | AN87: 0 | AO87: 0 | AP87: 0 | AQ87: 0 | AR87: 0 | AS87: 0 | AT87: 0 | AU87: 0 | AV87: 0 | AW87: 0 | AX87: 0 | AY87: 0 | AZ87: 0 | BA87: 0 | BB87: 0 | BC87: 0 | BD87: 0 | BE87: 0 | BF87: 0 | BG87: 0 | BH87: 0 | BI87: 0 | BJ87: 0 | BK87: 0 | BL87: 0 | BM87: 0 | BN87: 0 | BO87: 0 | BP87: 0 | BQ87: 0 | BR87: 0 | BS87: 0 | BT87: 0 | BU87: 0 | BV87: 0 | BW87: 0 | BX87: 0 | BY87: 0 | BZ87: 0 | CA87: 0 | CB87: 0 | CC87: 0 | CD87: 0 | CE87: 0 | CF87: 0 | CG87: 0
A88: 87 | G88: (א) | H88: =$H$79 -> דרוג A- ומעלה | J88: 0 | K88: 0 | L88: 0 | M88: 0 | N88: 0 | P88: 0 | S88: 0 | T88: 0 | X88: 0 | Y88: 0 | Z88: 0 | AC88: 0 | AD88: 0 | AE88: 0 | AF88: 0 | AG88: 0 | AH88: 0 | AI88: 0 | AJ88: 0 | AK88: 0 | AL88: 0 | CG88: 0
A89: 88 | G89: (ב) | H89: =$H$80 -> דרוג BBB- ועד BBB+ | J89: 0 | K89: 0 | L89: 0 | M89: 0 | N89: 0 | P89: 0 | S89: 0 | T89: 0 | X89: 0 | Y89: 0 | Z89: 0 | AC89: 0 | AD89: 0 | AE89: 0 | AF89: 0 | AG89: 0 | AH89: 0 | AI89: 0 | AJ89: 0 | AK89: 0 | AL89: 0 | CG89: 0
A90: 89 | G90: (ג) | H90: =$H$81 -> דרוג נמוך מ- BBB- או לא מדורג | J90: 0 | K90: 0 | L90: 0 | M90: 0 | N90: 0 | P90: 0 | S90: 0 | T90: 0 | X90: 0 | Y90: 0 | Z90: 0 | AC90: 0 | AD90: 0 | AE90: 0 | AF90: 0 | AG90: 0 | AH90: 0 | AI90: 0 | AJ90: 0 | AK90: 0 | AL90: 0 | CG90: 0
A91: 90 | F91: (4) | G91: לא סחיר - חברות זרות | J91: 0 | K91: 0 | L91: 0 | M91: 0 | N91: 0 | O91: 0 | P91: 0 | Q91: 0 | R91: 0 | S91: 0 | T91: 0 | U91: 0 | V91: 0 | W91: 0 | X91: 0 | Y91: 0 | Z91: 0 | AA91: 0 | AB91: 0 | AC91: 0 | AD91: 0 | AE91: 0 | AF91: 0 | AG91: 0 | AH91: 0 | AI91: 0 | AJ91: 0 | AK91: 0 | AL91: 0 | AM91: 0 | AN91: 0 | AO91: 0 | AP91: 0 | AQ91: 0 | AR91: 0 | AS91: 0 | AT91: 0 | AU91: 0 | AV91: 0 | AW91: 0 | AX91: 0 | AY91: 0 | AZ91: 0 | BA91: 0 | BB91: 0 | BC91: 0 | BD91: 0 | BE91: 0 | BF91: 0 | BG91: 0 | BH91: 0 | BI91: 0 | BJ91: 0 | BK91: 0 | BL91: 0 | BM91: 0 | BN91: 0 | BO91: 0 | BP91: 0 | BQ91: 0 | BR91: 0 | BS91: 0 | BT91: 0 | BU91: 0 | BV91: 0 | BW91: 0 | BX91: 0 | BY91: 0 | BZ91: 0 | CA91: 0 | CB91: 0 | CC91: 0 | CD91: 0 | CE91: 0 | CF91: 0 | CG91: 0
A92: 91 | G92: (א) | H92: =$H$79 -> דרוג A- ומעלה | J92: 0 | K92: 0 | L92: 0 | M92: 0 | N92: 0 | P92: 0 | S92: 0 | T92: 0 | X92: 0 | Y92: 0 | Z92: 0 | AC92: 0 | AD92: 0 | AE92: 0 | AF92: 0 | AG92: 0 | AH92: 0 | AI92: 0 | AJ92: 0 | AK92: 0 | AL92: 0 | CG92: 0
A93: 92 | G93: (ב) | H93: =$H$80 -> דרוג BBB- ועד BBB+ | J93: 0 | K93: 0 | L93: 0 | M93: 0 | N93: 0 | P93: 0 | S93: 0 | T93: 0 | X93: 0 | Y93: 0 | Z93: 0 | AC93: 0 | AD93: 0 | AE93: 0 | AF93: 0 | AG93: 0 | AH93: 0 | AI93: 0 | AJ93: 0 | AK93: 0 | AL93: 0 | CG93: 0
A94: 93 | G94: (ג) | H94: =$H$69 -> בדרוג נמוך מ- BBB- או לא מדורג עם בטוחה מספקת | J94: 0 | K94: 0 | L94: 0 | M94: 0 | N94: 0 | P94: 0 | S94: 0 | T94: 0 | X94: 0 | Y94: 0 | Z94: 0 | AC94: 0 | AD94: 0 | AE94: 0 | AF94: 0 | AG94: 0 | AH94: 0 | AI94: 0 | AJ94: 0 | AK94: 0 | AL94: 0 | CG94: 0
A95: 94 | G95: (ד) | H95: =H90 -> דרוג נמוך מ- BBB- או לא מדורג | J95: 0 | K95: 0 | L95: 0 | M95: 0 | N95: 0 | P95: 0 | S95: 0 | T95: 0 | X95: 0 | Y95: 0 | Z95: 0 | AC95: 0 | AD95: 0 | AE95: 0 | AF95: 0 | AG95: 0 | AH95: 0 | AI95: 0 | AJ95: 0 | AK95: 0 | AL95: 0 | CG95: 0
A96: 95 | AC96: 0 | AD96: 0 | AE96: 0 | AF96: 0 | AG96: 0 | AH96: 0 | AI96: 0 | AJ96: 0 | AK96: 0 | AL96: 0 | CG96: 0
A97: 96 | D97: (3 | E97: אג"ח קונצרני: | J97: 8645204.67 | K97: 182.1629814 | L97: 74318.9081 | M97: 2376992.724 | N97: 78442.31454 | O97: 2199708.71 | P97: 287858.6167 | Q97: 1240007.56 | R97: 356559.89 | S97: 3943.622213 | T97: 2208.734068 | U97: 54892.59 | V97: 0 | W97: 68520.48 | X97: 141.4559324 | Y97: 16978.81327 | Z97: 154.027787 | AA97: 6504.14 | AB97: 0 | AC97: 241888.6428 | AD97: 98420.71768 | AE97: 221877.5078 | AF97: 339731.7598 | AG97: 191476.6128 | AH97: 4855.427158 | AI97: 14072.39232 | AJ97: 38067.11223 | AK97: 181577.9502 | AL97: 82778.96723 | AM97: 0 | AN97: 0 | AO97: 0 | AP97: 0 | AQ97: 0 | AR97: 0 | AS97: 0 | AT97: 0 | AU97: 0 | AV97: 0 | AW97: 0 | AX97: 0 | AY97: 0 | AZ97: 0 | BA97: 0 | BB97: 0 | BC97: 0 | BD97: 0 | BE97: 0 | BF97: 0 | BG97: 0 | BH97: 0 | BI97: 0 | BJ97: 0 | BK97: 0 | BL97: 0 | BM97: 0 | BN97: 0 | BO97: 0 | BP97: 0 | BQ97: 0 | BR97: 0 | BS97: 0 | BT97: 0 | BU97: 0 | BV97: 0 | BW97: 0 | BX97: 0 | BY97: 0 | BZ97: 0 | CA97: 0 | CB97: 0 | CC97: 0 | CD97: 0 | CE97: 0 | CF97: 0 | CG97: 463042.83
A98: 97 | E98: א) | F98: בישראל | J98: 6006543.61 | K98: 125.7595031 | L98: 51307.39999 | M98: 1640999.842 | N98: 54154.06807 | O98: 1505151.54 | P98: 238262.7765 | Q98: 865980.27 | R98: 299422.23 | S98: 3925.201672 | T98: 2208.734068 | U98: 834.08 | V98: 0 | W98: 47882.34 | X98: 141.4559324 | Y98: 14053.49347 | Z98: 153.3083279 | AA98: 96.41 | AB98: 0 | AC98: 153478.4101 | AD98: 62394.35897 | AE98: 163253.6451 | AF98: 252126.3397 | AG98: 130932.1019 | AH98: 3080.769861 | AI98: 8921.271035 | AJ98: 28009.12491 | AK98: 134755.0903 | AL98: 56604.42815 | AM98: 0 | AN98: 0 | AO98: 0 | AP98: 0 | AQ98: 0 | AR98: 0 | AS98: 0 | AT98: 0 | AU98: 0 | AV98: 0 | AW98: 0 | AX98: 0 | AY98: 0 | AZ98: 0 | BA98: 0 | BB98: 0 | BC98: 0 | BD98: 0 | BE98: 0 | BF98: 0 | BG98: 0 | BH98: 0 | BI98: 0 | BJ98: 0 | BK98: 0 | BL98: 0 | BM98: 0 | BN98: 0 | BO98: 0 | BP98: 0 | BQ98: 0 | BR98: 0 | BS98: 0 | BT98: 0 | BU98: 0 | BV98: 0 | BW98: 0 | BX98: 0 | BY98: 0 | BZ98: 0 | CA98: 0 | CB98: 0 | CC98: 0 | CD98: 0 | CE98: 0 | CF98: 0 | CG98: 288289.16
A99: 98 | F99: (1) | G99: סחיר | J99: 5300602.97 | K99: 104.9173853 | L99: 42804.2265 | M99: 1369037 | N99: 45179.11639 | O99: 1332602.55 | P99: 218977.4936 | Q99: 800138.05 | R99: 282233.05 | S99: 3925.201672 | T99: 2208.734068 | U99: 301.84 | V99: 0 | W99: 45989.63 | X99: 141.4559324 | Y99: 12915.98638 | Z99: 153.3083279 | AA99: 53.59 | AB99: 0 | AC99: 135409.0462 | AD99: 54595.12862 | AE99: 148247.3648 | AF99: 232026.8655 | AG99: 120154.6629 | AH99: 2718.063786 | AI99: 7806.121381 | AJ99: 25434.52524 | AK99: 124012.4345 | AL99: 51945.13711 | AM99: 0 | AN99: 0 | AO99: 0 | AP99: 0 | AQ99: 0 | AR99: 0 | AS99: 0 | AT99: 0 | AU99: 0 | AV99: 0 | AW99: 0 | AX99: 0 | AY99: 0 | AZ99: 0 | BA99: 0 | BB99: 0 | BC99: 0 | BD99: 0 | BE99: 0 | BF99: 0 | BG99: 0 | BH99: 0 | BI99: 0 | BJ99: 0 | BK99: 0 | BL99: 0 | BM99: 0 | BN99: 0 | BO99: 0 | BP99: 0 | BQ99: 0 | BR99: 0 | BS99: 0 | BT99: 0 | BU99: 0 | BV99: 0 | BW99: 0 | BX99: 0 | BY99: 0 | BZ99: 0 | CA99: 0 | CB99: 0 | CC99: 0 | CD99: 0 | CE99: 0 | CF99: 0 | CG99: 241487.47
A100: 99 | G100: (א) | H100: =$H$48 -> דרוג AA- ומעלה | J100: 3896101.68 | K100: 75.82462058 | L100: 30934.95157 | M100: 989413.8206 | N100: 32651.30319 | O100: 1001829.15 | P100: 163192.4993 | Q100: 604051.7 | R100: 207495.79 | S100: 971.9000715 | T100: 1233.642716 | U100: 301.84 | V100: 0 | W100: 28602.31 | X100: 79.00728438 | Y100: 9625.610669 | Z100: 37.9599285 | AA100: 53.59 | AB100: 0 | AC100: 97570.49882 | AD100: 40263.37202 | AE100: 99001.96637 | AF100: 167107.2514 | AG100: 85347.03141 | AH100: 1958.531183 | AI100: 5756.937976 | AJ100: 16985.58363 | AK100: 89314.5586 | AL100: 36897.13859 | AM100: 0 | AN100: 0 | AO100: 0 | AP100: 0 | AQ100: 0 | AR100: 0 | AS100: 0 | AT100: 0 | AU100: 0 | AV100: 0 | AW100: 0 | AX100: 0 | AY100: 0 | AZ100: 0 | BA100: 0 | BB100: 0 | BC100: 0 | BD100: 0 | BE100: 0 | BF100: 0 | BG100: 0 | BH100: 0 | BI100: 0 | BJ100: 0 | BK100: 0 | BL100: 0 | BM100: 0 | BN100: 0 | BO100: 0 | BP100: 0 | BQ100: 0 | BR100: 0 | BS100: 0 | BT100: 0 | BU100: 0 | BV100: 0 | BW100: 0 | BX100: 0 | BY100: 0 | BZ100: 0 | CA100: 0 | CB100: 0 | CC100: 0 | CD100: 0 | CE100: 0 | CF100: 0 | CG100: 185347.91
A101: 100 | H101: a | I101: צמוד מדד | J101: 3298511.59 | K101: 64.28773378 | L101: 26228.12901 | M101: 838872.2794 | N101: 27683.33387 | O101: 913249.58 | P101: 114406.5965 | Q101: 532765.5 | R101: 141120.41 | S101: 323.2545066 | T101: 0 | W101: 18832.52 | X101: 0 | Y101: 6748.063545 | Z101: 12.62549342 | AC101: 74535.65686 | AD101: 33195.07182 | AE101: 78187.23175 | AF101: 133541.8052 | AG101: 67384.25148 | AH101: 1496.15314 | AI101: 4746.298185 | AJ101: 13414.43825 | AK101: 71374.68476 | AL101: 29131.48852 | CG101: 171197.93
A102: 101 | H102: b | I102: לא צמוד | J102: 542932.58 | K102: 10.47676724 | L102: 4274.314657 | M102: 136708.3438 | N102: 4511.464758 | O102: 73519.86 | P102: 46899.29121 | Q102: 62500.77 | R102: 64048.26 | S102: 643.3138096 | T102: 1233.642716 | W102: 9459.23 | X102: 79.00728438 | Y102: 2766.268791 | Z102: 25.12619037 | AC102: 21805.74363 | AD102: 6520.916267 | AE102: 19525.41994 | AF102: 31363.31111 | AG102: 16851.60284 | AH102: 437.70637 | AI102: 932.3737334 | AJ102: 3349.940062 | AK102: 16762.88889 | AL102: 7285.267162 | CG102: 11418.04
A103: 102 | H103: c | I103: צמוד מט"ח | J103: 54657.51 | K103: 1.060119562 | L103: 432.5078984 | M103: 13833.19742 | N103: 456.5045622 | O103: 15059.71 | P103: 1886.611666 | Q103: 8785.43 | R103: 2327.12 | S103: 5.331755289 | T103: 0 | U103: 301.84 | W103: 310.56 | X103: 0 | Y103: 111.2783336 | Z103: 0.208244711 | AA103: 53.59 | AC103: 1229.098327 | AD103: 547.3839422 | AE103: 1289.314674 | AF103: 2202.13505 | AG103: 1111.177092 | AH103: 24.67167259 | AI103: 78.26605785 | AJ103: 221.2053258 | AK103: 1176.98495 | AL103: 480.3829081 | CG103: 2731.94
A104: 103 | H104: d | I104: אחר | J104: 0 | K104: 0 | L104: 0 | M104: 0 | N104: 0 | P104: 0 | S104: 0 | T104: 0 | X104: 0 | Y104: 0 | Z104: 0 | AC104: 0 | AD104: 0 | AE104: 0 | AF104: 0 | AG104: 0 | AH104: 0 | AI104: 0 | AJ104: 0 | AK104: 0 | AL104: 0 | CG104: 0
A105: 104 | G105: (ב) | H105: =$H$52 -> דרוג BBB- ועד A+ | J105: 1287484.6 | K105: 26.4425202 | L105: 10788.02737 | M105: 345040.8949 | N105: 11386.5752 | O105: 300989.67 | P105: 52232.41658 | Q105: 182600.52 | R105: 69614.53 | S105: 2882.304563 | T105: 975.091352 | U105: 0 | V105: 0 | W105: 15268.07 | X105: 62.44864803 | Y105: 3080.833423 | Z105: 112.5754369 | AA105: 0 | AB105: 0 | AC105: 36017.45221 | AD105: 13503.95704 | AE105: 42877.82171 | AF105: 60383.68326 | AG105: 32065.16269 | AH105: 722.9777867 | AI105: 1930.822959 | AJ105: 7356.468294 | AK105: 32273.53674 | AL105: 13862.37731 | AM105: 0 | AN105: 0 | AO105: 0 | AP105: 0 | AQ105: 0 | AR105: 0 | AS105: 0 | AT105: 0 | AU105: 0 | AV105: 0 | AW105: 0 | AX105: 0 | AY105: 0 | AZ105: 0 | BA105: 0 | BB105: 0 | BC105: 0 | BD105: 0 | BE105: 0 | BF105: 0 | BG105: 0 | BH105: 0 | BI105: 0 | BJ105: 0 | BK105: 0 | BL105: 0 | BM105: 0 | BN105: 0 | BO105: 0 | BP105: 0 | BQ105: 0 | BR105: 0 | BS105: 0 | BT105: 0 | BU105: 0 | BV105: 0 | BW105: 0 | BX105: 0 | BY105: 0 | BZ105: 0 | CA105: 0 | CB105: 0 | CC105: 0 | CD105: 0 | CE105: 0 | CF105: 0 | CG105: 51429.94
A106: 105 | H106: a | I106: צמוד מדד | J106: 643231.37 | K106: 12.79830586 | L106: 5221.456684 | M106: 167001.4383 | N106: 5511.156689 | O106: 176403.48 | P106: 22079.07613 | Q106: 100405.55 | R106: 27686.57 | S106: 84.27830517 | T106: 0 | W106: 4668.63 | X106: 0 | Y106: 1302.293866 | Z106: 3.291694828 | AC106: 14007.38007 | AD106: 6252.898051 | AE106: 17701.73601 | AF106: 26058.42648 | AG106: 13427.49118 | AH106: 281.1699333 | AI106: 894.0519494 | AJ106: 3037.053994 | AK106: 13927.56352 | AL106: 5804.958821 | CG106: 31458.62
A107: 106 | H107: b | I107: לא צמוד | J107: 547177.92 | K107: 11.74868073 | L107: 4793.230309 | M107: 153305.1798 | N107: 5059.171201 | O107: 97667.12 | P107: 26781.07721 | Q107: 66494.95 | R107: 37767.61 | S107: 2788.450271 | T107: 975.091352 | W107: 10042.75 | X107: 62.44864803 | Y107: 1579.632787 | Z107: 108.9097285 | AC107: 19813.67048 | AD107: 6272.85462 | AE107: 22867.47052 | AF107: 30388.55393 | AG107: 16650.83052 | AH107: 397.7195152 | AI107: 896.9053799 | AJ107: 3923.329478 | AK107: 16241.90607 | AL107: 7198.469483 | CG107: 15088.84
A108: 107 | H108: c | I108: צמוד מט"ח | J108: 97075.31 | K108: 1.895533611 | L108: 773.3403743 | M108: 24734.27678 | N108: 816.2473109 | O108: 26919.07 | P108: 3372.26323 | Q108: 15700.02 | R108: 4160.35 | S108: 9.575986485 | T108: 0 | W108: 556.69 | X108: 0 | Y108: 198.90677 | Z108: 0.3740135153 | AC108: 2196.401662 | AD108: 978.2043702 | AE108: 2308.615178 | AF108: 3936.702853 | AG108: 1986.840996 | AH108: 44.08833814 | AI108: 139.8656298 | AJ108: 396.0848216 | AK108: 2104.067147 | AL108: 858.9490036 | CG108: 4882.48
A109: 108 | H109: d | I109: אחר | J109: 0 | K109: 0 | L109: 0 | M109: 0 | N109: 0 | P109: 0 | S109: 0 | T109: 0 | X109: 0 | Y109: 0 | Z109: 0 | AC109: 0 | AD109: 0 | AE109: 0 | AF109: 0 | AG109: 0 | AH109: 0 | AI109: 0 | AJ109: 0 | AK109: 0 | AL109: 0 | CG109: 0
A110: 109 | G110: (ג) | H110: =$H$56 -> דרוג נמוך מ- BBB- או לא מדורג | J110: 117016.69 | K110: 2.650244542 | L110: 1081.247567 | M110: 34582.28419 | N110: 1141.237996 | O110: 29783.73 | P110: 3552.577711 | Q110: 13485.83 | R110: 5122.73 | S110: 70.99703748 | T110: 0 | U110: 0 | V110: 0 | W110: 2119.25 | X110: 0 | Y110: 209.5422894 | Z110: 2.772962515 | AA110: 0 | AB110: 0 | AC110: 1821.095183 | AD110: 827.7995536 | AE110: 6367.576686 | AF110: 4535.930812 | AG110: 2742.468787 | AH110: 36.55481674 | AI110: 118.3604464 | AJ110: 1092.473314 | AK110: 2424.339188 | AL110: 1185.621213 | AM110: 0 | AN110: 0 | AO110: 0 | AP110: 0 | AQ110: 0 | AR110: 0 | AS110: 0 | AT110: 0 | AU110: 0 | AV110: 0 | AW110: 0 | AX110: 0 | AY110: 0 | AZ110: 0 | BA110: 0 | BB110: 0 | BC110: 0 | BD110: 0 | BE110: 0 | BF110: 0 | BG110: 0 | BH110: 0 | BI110: 0 | BJ110: 0 | BK110: 0 | BL110: 0 | BM110: 0 | BN110: 0 | BO110: 0 | BP110: 0 | BQ110: 0 | BR110: 0 | BS110: 0 | BT110: 0 | BU110: 0 | BV110: 0 | BW110: 0 | BX110: 0 | BY110: 0 | BZ110: 0 | CA110: 0 | CB110: 0 | CC110: 0 | CD110: 0 | CE110: 0 | CF110: 0 | CG110: 4709.62
A111: 110 | H111: a | I111: צמוד מדד | J111: 72800.17 | K111: 1.640606281 | L111: 669.3350453 | M111: 21407.80285 | N111: 706.4714956 | O111: 18380.85 | P111: 2284.531116 | Q111: 8441.8 | R111: 3229.99 | S111: 26.35080502 | T111: 0 | W111: 1318.39 | X111: 0 | Y111: 134.7488836 | Z111: 1.02919498 | AC111: 1144.986699 | AD111: 523.2628277 | AE111: 3942.007149 | AF111: 2927.842793 | AG111: 1731.311318 | AH111: 22.98330111 | AI111: 74.81717235 | AJ111: 676.3228507 | AK111: 1564.857207 | AL111: 748.4786824 | CG111: 2840.36
A112: 111 | H112: b | I112: לא צמוד | J112: 44216.52 | K112: 1.009638261 | L112: 411.912522 | M112: 13174.48134 | N112: 434.7665008 | O112: 11402.88 | P112: 1268.046594 | Q112: 5044.03 | R112: 1892.74 | S112: 44.64623246 | T112: 0 | W112: 800.86 | X112: 0 | Y112: 74.7934058 | Z112: 1.743767535 | AC112: 676.1084844 | AD112: 304.5367259 | AE112: 2425.569536 | AF112: 1608.088019 | AG112: 1011.157469 | AH112: 13.57151563 | AI112: 43.54327406 | AJ112: 416.1504638 | AK112: 859.4819815 | AL112: 437.1425305 | CG112: 1869.26
A113: 112 | H113: c | I113: צמוד מט"ח | J113: 0 | K113: 0 | L113: 0 | M113: 0 | N113: 0 | P113: 0 | S113: 0 | T113: 0 | X113: 0 | Y113: 0 | Z113: 0 | AC113: 0 | AD113: 0 | AE113: 0 | AF113: 0 | AG113: 0 | AH113: 0 | AI113: 0 | AJ113: 0 | AK113: 0 | AL113: 0 | CG113: 0
A114: 113 | H114: d | I114: אחר | J114: 0 | K114: 0 | L114: 0 | M114: 0 | N114: 0 | P114: 0 | S114: 0 | T114: 0 | X114: 0 | Y114: 0 | Z114: 0 | AC114: 0 | AD114: 0 | AE114: 0 | AF114: 0 | AG114: 0 | AH114: 0 | AI114: 0 | AJ114: 0 | AK114: 0 | AL114: 0 | CG114: 0
A115: 114 | F115: (2) | G115: לא סחיר | J115: 705940.64 | K115: 20.84211776 | L115: 8503.173488 | M115: 271962.8427 | N115: 8974.951683 | O115: 172548.99 | P115: 19285.28291 | Q115: 65842.22 | R115: 17189.18 | S115: 0 | T115: 0 | U115: 532.24 | V115: 0 | W115: 1892.71 | X115: 0 | Y115: 1137.50709 | Z115: 0 | AA115: 42.82 | AB115: 0 | AC115: 18069.36392 | AD115: 7799.230346 | AE115: 15006.28033 | AF115: 20099.47427 | AG115: 10777.43896 | AH115: 362.7060754 | AI115: 1115.149654 | AJ115: 2574.599667 | AK115: 10742.65573 | AL115: 4659.291041 | AM115: 0 | AN115: 0 | AO115: 0 | AP115: 0 | AQ115: 0 | AR115: 0 | AS115: 0 | AT115: 0 | AU115: 0 | AV115: 0 | AW115: 0 | AX115: 0 | AY115: 0 | AZ115: 0 | BA115: 0 | BB115: 0 | BC115: 0 | BD115: 0 | BE115: 0 | BF115: 0 | BG115: 0 | BH115: 0 | BI115: 0 | BJ115: 0 | BK115: 0 | BL115: 0 | BM115: 0 | BN115: 0 | BO115: 0 | BP115: 0 | BQ115: 0 | BR115: 0 | BS115: 0 | BT115: 0 | BU115: 0 | BV115: 0 | BW115: 0 | BX115: 0 | BY115: 0 | BZ115: 0 | CA115: 0 | CB115: 0 | CC115: 0 | CD115: 0 | CE115: 0 | CF115: 0 | CG115: 46801.69
A116: 115 | G116: (א) | H116: =$H$48 -> דרוג AA- ומעלה | J116: 664065.48 | K116: 20.0184006 | L116: 8167.113112 | M116: 261214.3927 | N116: 8620.245802 | O116: 161683.48 | P116: 18663.01617 | Q116: 61624.89 | R116: 15660.61 | S116: 0 | T116: 0 | U116: 532.24 | V116: 0 | W116: 1837.07 | X116: 0 | Y116: 1100.803826 | Z116: 0 | AA116: 42.82 | AB116: 0 | AC116: 16123.9443 | AD116: 6991.571092 | AE116: 13276.0438 | AF116: 17879.22227 | AG116: 9678.430944 | AH116: 323.655696 | AI116: 999.6689077 | AJ116: 2277.746197 | AK116: 9555.987734 | AL116: 4184.169056 | AM116: 0 | AN116: 0 | AO116: 0 | AP116: 0 | AQ116: 0 | AR116: 0 | AS116: 0 | AT116: 0 | AU116: 0 | AV116: 0 | AW116: 0 | AX116: 0 | AY116: 0 | AZ116: 0 | BA116: 0 | BB116: 0 | BC116: 0 | BD116: 0 | BE116: 0 | BF116: 0 | BG116: 0 | BH116: 0 | BI116: 0 | BJ116: 0 | BK116: 0 | BL116: 0 | BM116: 0 | BN116: 0 | BO116: 0 | BP116: 0 | BQ116: 0 | BR116: 0 | BS116: 0 | BT116: 0 | BU116: 0 | BV116: 0 | BW116: 0 | BX116: 0 | BY116: 0 | BZ116: 0 | CA116: 0 | CB116: 0 | CC116: 0 | CD116: 0 | CE116: 0 | CF116: 0 | CG116: 43608.34
A117: 116 | H117: a | I117: צמוד מדד | J117: 543614.04 | K117: 17.78298332 | L117: 7255.106897 | M117: 232045.071 | N117: 7657.639109 | O117: 129497.42 | P117: 17260.246 | Q117: 49509.73 | R117: 11634.65 | S117: 0 | T117: 0 | W117: 1063.67 | X117: 0 | Y117: 1018.063997 | Z117: 0 | AC117: 10560.57768 | AD117: 4841.948463 | AE117: 8735.82988 | AF117: 12789.9815 | AG117: 6492.01774 | AH117: 211.9823199 | AI117: 692.3115373 | AJ117: 1498.79012 | AK117: 6835.918503 | AL117: 2806.62226 | CG117: 31188.68
A118: 117 | H118: b | I118: לא צמוד | J118: 81307.95 | K118: 1.410056286 | L118: 575.2751887 | M118: 18399.4218 | N118: 607.1929533 | O118: 21156.84 | P118: 641.8326752 | Q118: 9079.68 | R118: 3326.03 | S118: 0 | T118: 0 | W118: 665.56 | X118: 0 | Y118: 37.85732477 | Z118: 0 | AC118: 4379.539567 | AD118: 1767.05318 | AE118: 3795.007591 | AF118: 4213.247045 | AG118: 2485.70335 | AH118: 87.91043309 | AI118: 252.6568204 | AJ118: 651.1024092 | AK118: 2251.872955 | AL118: 1074.61665 | CG118: 5858.14
A119: 118 | H119: c | I119: צמוד מט"ח | J119: 39143.49 | K119: 0.8253609911 | L119: 336.731026 | M119: 10769.89987 | N119: 355.4137397 | O119: 11029.22 | P119: 760.9374956 | Q119: 3035.48 | R119: 699.93 | S119: 0 | T119: 0 | U119: 532.24 | W119: 107.84 | X119: 0 | Y119: 44.88250444 | Z119: 0 | AA119: 42.82 | AC119: 1183.827057 | AD119: 382.56945 | AE119: 745.2063325 | AF119: 875.993724 | AG119: 700.7098548 | AH119: 23.76294304 | AI119: 54.70055001 | AJ119: 127.8536675 | AK119: 468.196276 | AL119: 302.9301452 | CG119: 6561.52
A120: 119 | H120: d | I120: אחר | J120: 0 | K120: 0 | L120: 0 | M120: 0 | N120: 0 | P120: 0 | S120: 0 | T120: 0 | X120: 0 | Y120: 0 | Z120: 0 | AC120: 0 | AD120: 0 | AE120: 0 | AF120: 0 | AG120: 0 | AH120: 0 | AI120: 0 | AJ120: 0 | AK120: 0 | AL120: 0 | CG120: 0
A121: 120 | G121: (ב) | H121: =$H$52 -> דרוג BBB- ועד A+ | J121: 32955.06 | K121: 0.5599025029 | L121: 228.429192 | M121: 7306.007868 | N121: 241.103038 | O121: 8866.33 | P121: 314.8114247 | Q121: 3302.27 | R121: 1302.28 | S121: 0 | T121: 0 | U121: 0 | V121: 0 | W121: 36.32 | X121: 0 | Y121: 18.56857528 | Z121: 0 | AA121: 0 | AB121: 0 | AC121: 1731.454539 | AD121: 709.556223 | AE121: 1553.234448 | AF121: 1961.114421 | AG121: 967.4730651 | AH121: 34.7554614 | AI121: 101.453777 | AJ121: 266.4855517 | AK121: 1048.165579 | AL121: 418.2569349 | AM121: 0 | AN121: 0 | AO121: 0 | AP121: 0 | AQ121: 0 | AR121: 0 | AS121: 0 | AT121: 0 | AU121: 0 | AV121: 0 | AW121: 0 | AX121: 0 | AY121: 0 | AZ121: 0 | BA121: 0 | BB121: 0 | BC121: 0 | BD121: 0 | BE121: 0 | BF121: 0 | BG121: 0 | BH121: 0 | BI121: 0 | BJ121: 0 | BK121: 0 | BL121: 0 | BM121: 0 | BN121: 0 | BO121: 0 | BP121: 0 | BQ121: 0 | BR121: 0 | BS121: 0 | BT121: 0 | BU121: 0 | BV121: 0 | BW121: 0 | BX121: 0 | BY121: 0 | BZ121: 0 | CA121: 0 | CB121: 0 | CC121: 0 | CD121: 0 | CE121: 0 | CF121: 0 | CG121: 2546.43
A122: 121 | H122: a | I122: צמוד מדד | J122: 0 | K122: 0 | L122: 0 | M122: 0 | N122: 0 | P122: 0 | S122: 0 | T122: 0 | X122: 0 | Y122: 0 | Z122: 0 | AC122: 0 | AD122: 0 | AE122: 0 | AF122: 0 | AG122: 0 | AH122: 0 | AI122: 0 | AJ122: 0 | AK122: 0 | AL122: 0 | CG122: 0
A123: 122 | H123: b | I123: לא צמוד | J123: 32955.06 | K123: 0.5599025029 | L123: 228.429192 | M123: 7306.007868 | N123: 241.103038 | O123: 8866.33 | P123: 314.8114247 | Q123: 3302.27 | R123: 1302.28 | S123: 0 | T123: 0 | W123: 36.32 | X123: 0 | Y123: 18.56857528 | Z123: 0 | AC123: 1731.454539 | AD123: 709.556223 | AE123: 1553.234448 | AF123: 1961.114421 | AG123: 967.4730651 | AH123: 34.7554614 | AI123: 101.453777 | AJ123: 266.4855517 | AK123: 1048.165579 | AL123: 418.2569349 | CG123: 2546.43
A124: 123 | H124: c | I124: צמוד מט"ח | J124: 0 | K124: 0 | L124: 0 | M124: 0 | N124: 0 | P124: 0 | S124: 0 | T124: 0 | X124: 0 | Y124: 0 | Z124: 0 | AC124: 0 | AD124: 0 | AE124: 0 | AF124: 0 | AG124: 0 | AH124: 0 | AI124: 0 | AJ124: 0 | AK124: 0 | AL124: 0 | CG124: 0
A125: 124 | H125: d | I125: אחר | J125: 0 | K125: 0 | L125: 0 | M125: 0 | N125: 0 | P125: 0 | S125: 0 | T125: 0 | X125: 0 | Y125: 0 | Z125: 0 | AC125: 0 | AD125: 0 | AE125: 0 | AF125: 0 | AG125: 0 | AH125: 0 | AI125: 0 | AJ125: 0 | AK125: 0 | AL125: 0 | CG125: 0
A126: 125 | G126: (ג) | H126: =$H$69 -> בדרוג נמוך מ- BBB- או לא מדורג עם בטוחה מספקת | J126: 0 | K126: 0 | L126: 0 | M126: 0 | N126: 0 | O126: 0 | P126: 0 | Q126: 0 | R126: 0 | S126: 0 | T126: 0 | U126: 0 | V126: 0 | W126: 0 | X126: 0 | Y126: 0 | Z126: 0 | AA126: 0 | AB126: 0 | AC126: 0 | AD126: 0 | AE126: 0 | AF126: 0 | AG126: 0 | AH126: 0 | AI126: 0 | AJ126: 0 | AK126: 0 | AL126: 0 | AM126: 0 | AN126: 0 | AO126: 0 | AP126: 0 | AQ126: 0 | AR126: 0 | AS126: 0 | AT126: 0 | AU126: 0 | AV126: 0 | AW126: 0 | AX126: 0 | AY126: 0 | AZ126: 0 | BA126: 0 | BB126: 0 | BC126: 0 | BD126: 0 | BE126: 0 | BF126: 0 | BG126: 0 | BH126: 0 | BI126: 0 | BJ126: 0 | BK126: 0 | BL126: 0 | BM126: 0 | BN126: 0 | BO126: 0 | BP126: 0 | BQ126: 0 | BR126: 0 | BS126: 0 | BT126: 0 | BU126: 0 | BV126: 0 | BW126: 0 | BX126: 0 | BY126: 0 | BZ126: 0 | CA126: 0 | CB126: 0 | CC126: 0 | CD126: 0 | CE126: 0 | CF126: 0 | CG126: 0
A127: 126 | H127: a | I127: צמוד מדד | J127: 0 | K127: 0 | L127: 0 | M127: 0 | N127: 0 | P127: 0 | S127: 0 | T127: 0 | X127: 0 | Y127: 0 | Z127: 0 | AC127: 0 | AD127: 0 | AE127: 0 | AF127: 0 | AG127: 0 | AH127: 0 | AI127: 0 | AJ127: 0 | AK127: 0 | AL127: 0 | CG127: 0
A128: 127 | H128: b | I128: לא צמוד | J128: 0 | K128: 0 | L128: 0 | M128: 0 | N128: 0 | P128: 0 | S128: 0 | T128: 0 | X128: 0 | Y128: 0 | Z128: 0 | AC128: 0 | AD128: 0 | AE128: 0 | AF128: 0 | AG128: 0 | AH128: 0 | AI128: 0 | AJ128: 0 | AK128: 0 | AL128: 0 | CG128: 0
A129: 128 | H129: c | I129: צמוד מט"ח | J129: 0 | K129: 0 | L129: 0 | M129: 0 | N129: 0 | P129: 0 | S129: 0 | T129: 0 | X129: 0 | Y129: 0 | Z129: 0 | AC129: 0 | AD129: 0 | AE129: 0 | AF129: 0 | AG129: 0 | AH129: 0 | AI129: 0 | AJ129: 0 | AK129: 0 | AL129: 0 | CG129: 0
A130: 129 | H130: d | I130: אחר | J130: 0 | K130: 0 | L130: 0 | M130: 0 | N130: 0 | P130: 0 | S130: 0 | T130: 0 | X130: 0 | Y130: 0 | Z130: 0 | AC130: 0 | AD130: 0 | AE130: 0 | AF130: 0 | AG130: 0 | AH130: 0 | AI130: 0 | AJ130: 0 | AK130: 0 | AL130: 0 | CG130: 0
A131: 130 | G131: (ד) | H131: =$H$56 -> דרוג נמוך מ- BBB- או לא מדורג | J131: 8920.1 | K131: 0.2638146598 | L131: 107.6311845 | M131: 3442.442158 | N131: 113.6028427 | O131: 1999.18 | P131: 307.4553116 | Q131: 915.06 | R131: 226.29 | S131: 0 | T131: 0 | U131: 0 | V131: 0 | W131: 19.32 | X131: 0 | Y131: 18.13468842 | Z131: 0 | AA131: 0 | AB131: 0 | AC131: 213.9650821 | AD131: 98.10303114 | AE131: 177.0020814 | AF131: 259.1375806 | AG131: 131.5349494 | AH131: 4.294917934 | AI131: 14.02696886 | AJ131: 30.36791861 | AK131: 138.5024194 | AL131: 56.86505057 | AM131: 0 | AN131: 0 | AO131: 0 | AP131: 0 | AQ131: 0 | AR131: 0 | AS131: 0 | AT131: 0 | AU131: 0 | AV131: 0 | AW131: 0 | AX131: 0 | AY131: 0 | AZ131: 0 | BA131: 0 | BB131: 0 | BC131: 0 | BD131: 0 | BE131: 0 | BF131: 0 | BG131: 0 | BH131: 0 | BI131: 0 | BJ131: 0 | BK131: 0 | BL131: 0 | BM131: 0 | BN131: 0 | BO131: 0 | BP131: 0 | BQ131: 0 | BR131: 0 | BS131: 0 | BT131: 0 | BU131: 0 | BV131: 0 | BW131: 0 | BX131: 0 | BY131: 0 | BZ131: 0 | CA131: 0 | CB131: 0 | CC131: 0 | CD131: 0 | CE131: 0 | CF131: 0 | CG131: 646.92
A132: 131 | H132: a | I132: צמוד מדד | J132: 8920.1 | K132: 0.2638146598 | L132: 107.6311845 | M132: 3442.442158 | N132: 113.6028427 | O132: 1999.18 | P132: 307.4553116 | Q132: 915.06 | R132: 226.29 | S132: 0 | T132: 0 | W132: 19.32 | X132: 0 | Y132: 18.13468842 | Z132: 0 | AC132: 213.9650821 | AD132: 98.10303114 | AE132: 177.0020814 | AF132: 259.1375806 | AG132: 131.5349494 | AH132: 4.294917934 | AI132: 14.02696886 | AJ132: 30.36791861 | AK132: 138.5024194 | AL132: 56.86505057 | CG132: 646.92
A133: 132 | H133: b | I133: לא צמוד | J133: 0 | K133: 0 | L133: 0 | M133: 0 | N133: 0 | P133: 0 | S133: 0 | T133: 0 | X133: 0 | Y133: 0 | Z133: 0 | AC133: 0 | AD133: 0 | AE133: 0 | AF133: 0 | AG133: 0 | AH133: 0 | AI133: 0 | AJ133: 0 | AK133: 0 | AL133: 0 | CG133: 0
A134: 133 | H134: c | I134: צמוד מט"ח | J134: 0 | K134: 0 | L134: 0 | M134: 0 | N134: 0 | P134: 0 | S134: 0 | T134: 0 | X134: 0 | Y134: 0 | Z134: 0 | AC134: 0 | AD134: 0 | AE134: 0 | AF134: 0 | AG134: 0 | AH134: 0 | AI134: 0 | AJ134: 0 | AK134: 0 | AL134: 0 | CG134: 0
A135: 134 | H135: d | I135: אחר | J135: 0 | K135: 0 | L135: 0 | M135: 0 | N135: 0 | P135: 0 | S135: 0 | T135: 0 | X135: 0 | Y135: 0 | Z135: 0 | AC135: 0 | AD135: 0 | AE135: 0 | AF135: 0 | AG135: 0 | AH135: 0 | AI135: 0 | AJ135: 0 | AK135: 0 | AL135: 0 | CG135: 0
A136: 135 | E136: ב) | F136: בחו"ל | J136: 2638661.06 | K136: 56.40347836 | L136: 23011.50811 | M136: 735992.8819 | N136: 24288.24647 | O136: 694557.17 | P136: 49595.84021 | Q136: 374027.29 | R136: 57137.66 | S136: 18.42054084 | T136: 0 | U136: 54058.51 | V136: 0 | W136: 20638.14 | X136: 0 | Y136: 2925.319795 | Z136: 0.7194591642 | AA136: 6407.73 | AB136: 0 | AC136: 88410.2327 | AD136: 36026.35872 | AE136: 58623.86268 | AF136: 87605.42008 | AG136: 60544.51091 | AH136: 1774.657296 | AI136: 5151.121285 | AJ136: 10057.98732 | AK136: 46822.85992 | AL136: 26174.53909 | AM136: 0 | AN136: 0 | AO136: 0 | AP136: 0 | AQ136: 0 | AR136: 0 | AS136: 0 | AT136: 0 | AU136: 0 | AV136: 0 | AW136: 0 | AX136: 0 | AY136: 0 | AZ136: 0 | BA136: 0 | BB136: 0 | BC136: 0 | BD136: 0 | BE136: 0 | BF136: 0 | BG136: 0 | BH136: 0 | BI136: 0 | BJ136: 0 | BK136: 0 | BL136: 0 | BM136: 0 | BN136: 0 | BO136: 0 | BP136: 0 | BQ136: 0 | BR136: 0 | BS136: 0 | BT136: 0 | BU136: 0 | BV136: 0 | BW136: 0 | BX136: 0 | BY136: 0 | BZ136: 0 | CA136: 0 | CB136: 0 | CC136: 0 | CD136: 0 | CE136: 0 | CF136: 0 | CG136: 174753.67
A137: 136 | F137: (1) | G137: סחיר - חברות ישראליות | J137: 146026.81 | K137: 3.258615142 | L137: 1329.450788 | M137: 42520.73842 | N137: 1403.212178 | O137: 40850.57 | P137: 5919.971334 | Q137: 20331.03 | R137: 5414.21 | S137: 10.67313468 | T137: 0 | U137: 296.89 | V137: 0 | W137: 847.8 | X137: 0 | Y137: 349.1786661 | Z137: 0.4168653151 | AA137: 98.15 | AB137: 0 | AC137: 2577.452827 | AD137: 1142.362684 | AE137: 2762.673274 | AF137: 4514.868226 | AG137: 2238.509803 | AH137: 51.73717256 | AI137: 163.337316 | AJ137: 473.9867264 | AK137: 2413.081774 | AL137: 967.7501967 | AM137: 0 | AN137: 0 | AO137: 0 | AP137: 0 | AQ137: 0 | AR137: 0 | AS137: 0 | AT137: 0 | AU137: 0 | AV137: 0 | AW137: 0 | AX137: 0 | AY137: 0 | AZ137: 0 | BA137: 0 | BB137: 0 | BC137: 0 | BD137: 0 | BE137: 0 | BF137: 0 | BG137: 0 | BH137: 0 | BI137: 0 | BJ137: 0 | BK137: 0 | BL137: 0 | BM137: 0 | BN137: 0 | BO137: 0 | BP137: 0 | BQ137: 0 | BR137: 0 | BS137: 0 | BT137: 0 | BU137: 0 | BV137: 0 | BW137: 0 | BX137: 0 | BY137: 0 | BZ137: 0 | CA137: 0 | CB137: 0 | CC137: 0 | CD137: 0 | CE137: 0 | CF137: 0 | CG137: 9345.5
A138: 137 | G138: (א) | H138: =$H$79 -> דרוג A- ומעלה | J138: 51553.85 | K138: 1.006467249 | L138: 410.6188116 | M138: 13133.10371 | N138: 433.4010119 | O138: 14297.54 | P138: 1791.123841 | Q138: 8340.8 | R138: 2209.34 | S138: 5.062280292 | T138: 0 | W138: 294.84 | X138: 0 | Y138: 105.6461591 | Z138: 0.1977197076 | AC138: 1166.896896 | AD138: 519.6844686 | AE138: 1224.060254 | AF138: 2090.689728 | AG138: 1054.939617 | AH138: 23.42310417 | AI138: 74.30553137 | AJ138: 210.0097461 | AK138: 1117.420272 | AL138: 456.0703825 | CG138: 2593.67
A139: 138 | G139: (ב) | H139: =$H$80 -> דרוג BBB- ועד BBB+ | J139: 37398.86 | K139: 1.137910879 | L139: 464.2452237 | M139: 14848.27411 | N139: 490.0027569 | O139: 10724.54 | P139: 2145.935901 | Q139: 2756.32 | R139: 758.96 | S139: 0 | T139: 0 | U139: 296.89 | W139: 226.55 | X139: 0 | Y139: 126.5740986 | Z139: 0 | AA139: 98.15 | AC139: 118.7169955 | AD139: 47.3498265 | AE139: 183.4805778 | AF139: 109.6271095 | AG139: 15.6738833 | AH139: 2.383004499 | AI139: 6.770173501 | AJ139: 31.47942221 | AK139: 58.59289055 | AL139: 6.776116695 | CG139: 3880.43
A140: =A139+1 -> 139 | G140: (ג) | H140: =$H$81 -> דרוג נמוך מ- BBB- או לא מדורג | J140: 57074.1 | K140: 1.114237014 | L140: 454.586753 | M140: 14539.3606 | N140: 479.8084091 | O140: 15828.49 | P140: 1982.911592 | Q140: 9233.91 | R140: 2445.91 | S140: 5.610854393 | T140: 0 | W140: 326.41 | X140: 0 | Y140: 116.9584083 | Z140: 0.2191456075 | AC140: 1291.838936 | AD140: 575.3283889 | AE140: 1355.132442 | AF140: 2314.551388 | AG140: 1167.896303 | AH140: 25.9310639 | AI140: 82.26161109 | AJ140: 232.4975581 | AK140: 1237.068612 | AL140: 504.9036975 | CG140: 2871.4
A141: 140 | F141: (2) | G141: לא סחיר - חברות ישראליות | J141: 0 | K141: 0 | L141: 0 | M141: 0 | N141: 0 | O141: 0 | P141: 0 | Q141: 0 | R141: 0 | S141: 0 | T141: 0 | U141: 0 | V141: 0 | W141: 0 | X141: 0 | Y141: 0 | Z141: 0 | AA141: 0 | AB141: 0 | AC141: 0 | AD141: 0 | AE141: 0 | AF141: 0 | AG141: 0 | AH141: 0 | AI141: 0 | AJ141: 0 | AK141: 0 | AL141: 0 | AM141: 0 | AN141: 0 | AO141: 0 | AP141: 0 | AQ141: 0 | AR141: 0 | AS141: 0 | AT141: 0 | AU141: 0 | AV141: 0 | AW141: 0 | AX141: 0 | AY141: 0 | AZ141: 0 | BA141: 0 | BB141: 0 | BC141: 0 | BD141: 0 | BE141: 0 | BF141: 0 | BG141: 0 | BH141: 0 | BI141: 0 | BJ141: 0 | BK141: 0 | BL141: 0 | BM141: 0 | BN141: 0 | BO141: 0 | BP141: 0 | BQ141: 0 | BR141: 0 | BS141: 0 | BT141: 0 | BU141: 0 | BV141: 0 | BW141: 0 | BX141: 0 | BY141: 0 | BZ141: 0 | CA141: 0 | CB141: 0 | CC141: 0 | CD141: 0 | CE141: 0 | CF141: 0 | CG141: 0
A142: 141 | G142: (א) | H142: =$H$79 -> דרוג A- ומעלה | J142: 0 | K142: 0 | L142: 0 | M142: 0 | N142: 0 | P142: 0 | S142: 0 | T142: 0 | X142: 0 | Y142: 0 | Z142: 0 | AC142: 0 | AD142: 0 | AE142: 0 | AF142: 0 | AG142: 0 | AH142: 0 | AI142: 0 | AJ142: 0 | AK142: 0 | AL142: 0 | CG142: 0
A143: 142 | G143: (ב) | H143: =$H$80 -> דרוג BBB- ועד BBB+ | J143: 0 | K143: 0 | L143: 0 | M143: 0 | N143: 0 | P143: 0 | S143: 0 | T143: 0 | X143: 0 | Y143: 0 | Z143: 0 | AC143: 0 | AD143: 0 | AE143: 0 | AF143: 0 | AG143: 0 | AH143: 0 | AI143: 0 | AJ143: 0 | AK143: 0 | AL143: 0 | CG143: 0
A144: 143 | G144: (ג) | H144: =$H$69 -> בדרוג נמוך מ- BBB- או לא מדורג עם בטוחה מספקת | J144: 0 | K144: 0 | L144: 0 | M144: 0 | N144: 0 | P144: 0 | S144: 0 | T144: 0 | X144: 0 | Y144: 0 | Z144: 0 | AC144: 0 | AD144: 0 | AE144: 0 | AF144: 0 | AG144: 0 | AH144: 0 | AI144: 0 | AJ144: 0 | AK144: 0 | AL144: 0 | CG144: 0
A145: 144 | G145: (ד) | H145: =H140 -> דרוג נמוך מ- BBB- או לא מדורג | J145: 0 | K145: 0 | L145: 0 | M145: 0 | N145: 0 | P145: 0 | S145: 0 | T145: 0 | X145: 0 | Y145: 0 | Z145: 0 | AC145: 0 | AD145: 0 | AE145: 0 | AF145: 0 | AG145: 0 | AH145: 0 | AI145: 0 | AJ145: 0 | AK145: 0 | AL145: 0 | CG145: 0
A146: 145 | F146: (3) | G146: סחיר - חברות זרות | J146: 2406972.94 | K146: 51.11865569 | L146: 20855.40456 | M146: 667032.7401 | N146: 22012.51669 | O146: 626630.58 | P146: 41807.81274 | Q146: 346244.36 | R146: 50005.16 | S146: 7.747406151 | T146: 0 | U146: 52455.01 | V146: 0 | W146: 19525.6 | X146: 0 | Y146: 2465.957259 | Z146: 0.3025938491 | AA146: 6204.46 | AB146: 0 | AC146: 82926.55646 | AD146: 33944.80365 | AE146: 54031.76104 | AF146: 80940.03708 | AG146: 56585.79765 | AH146: 1664.583544 | AI146: 4853.496351 | AJ146: 9270.128964 | AK146: 43260.38292 | AL146: 24463.11235 | AM146: 0 | AN146: 0 | AO146: 0 | AP146: 0 | AQ146: 0 | AR146: 0 | AS146: 0 | AT146: 0 | AU146: 0 | AV146: 0 | AW146: 0 | AX146: 0 | AY146: 0 | AZ146: 0 | BA146: 0 | BB146: 0 | BC146: 0 | BD146: 0 | BE146: 0 | BF146: 0 | BG146: 0 | BH146: 0 | BI146: 0 | BJ146: 0 | BK146: 0 | BL146: 0 | BM146: 0 | BN146: 0 | BO146: 0 | BP146: 0 | BQ146: 0 | BR146: 0 | BS146: 0 | BT146: 0 | BU146: 0 | BV146: 0 | BW146: 0 | BX146: 0 | BY146: 0 | BZ146: 0 | CA146: 0 | CB146: 0 | CC146: 0 | CD146: 0 | CE146: 0 | CF146: 0 | CG146: 159733.51
A147: 146 | G147: (א) | H147: =$H$79 -> דרוג A- ומעלה | J147: 184959.11 | K147: 3.92749202 | L147: 1602.339379 | M147: 51248.72179 | N147: 1691.241338 | O147: 48150.83 | P147: 3213.27109 | Q147: 26609.86 | R147: 3842.83 | S147: 0 | T147: 0 | U147: 4031.47 | W147: 1500.7 | X147: 0 | Y147: 189.5289098 | Z147: 0 | AA147: 476.86 | AC147: 6373.52434 | AD147: 2608.921196 | AE147: 4152.71619 | AF147: 6220.852953 | AG147: 4349.080225 | AH147: 127.93566 | AI147: 373.028804 | AJ147: 712.4738098 | AK147: 3324.887047 | AL147: 1880.189775 | CG147: 12273.92
A148: 147 | G148: (ב) | H148: =$H$80 -> דרוג BBB- ועד BBB+ | J148: 1775516.82 | K148: 37.7019989 | L148: 15381.67288 | M148: 491962.617 | N148: 16235.08812 | O148: 462224.34 | P148: 30845.84437 | Q148: 255441.6 | R148: 36889.3 | S148: 0 | T148: 0 | U148: 38700.17 | W148: 14406.01 | X148: 0 | Y148: 1819.385633 | Z148: 0 | AA148: 4577.66 | AC148: 61182.71036 | AD148: 25044.33113 | AE148: 39864.0064 | AF148: 59717.11629 | AG148: 41749.05331 | AH148: 1228.119642 | AI148: 3580.888875 | AJ148: 6839.393596 | AK148: 31917.27371 | AL148: 18048.90669 | CG148: 117823.63
A149: 148 | G149: (ג) | H149: =$H$81 -> דרוג נמוך מ- BBB- או לא מדורג | J149: 446497.01 | K149: 9.489164774 | L149: 3871.392306 | M149: 123821.4013 | N149: 4086.187227 | O149: 116255.41 | P149: 7748.697283 | Q149: 64192.9 | R149: 9273.03 | S149: 7.747406151 | T149: 0 | U149: 9723.37 | W149: 3618.89 | X149: 0 | Y149: 457.0427167 | Z149: 0.3025938491 | AA149: 1149.94 | AC149: 15370.32176 | AD149: 6291.551327 | AE149: 10015.03844 | AF149: 15002.06784 | AG149: 10487.66411 | AH149: 308.5282418 | AI149: 899.5786727 | AJ149: 1718.261559 | AK149: 8018.222163 | AL149: 4534.015886 | CG149: 29635.96
A150: 149 | F150: (4) | G150: לא סחיר - חברות זרות | J150: 85661.31 | K150: 2.02620753 | L150: 826.652759 | M150: 26439.40343 | N150: 872.5176054 | O150: 27076.02 | P150: 1868.056131 | Q150: 7451.9 | R150: 1718.29 | S150: 0 | T150: 0 | U150: 1306.61 | V150: 0 | W150: 264.74 | X150: 0 | Y150: 110.1838693 | Z150: 0 | AA150: 105.12 | AB150: 0 | AC150: 2906.22342 | AD150: 939.1923827 | AE150: 1829.42837 | AF150: 2150.514771 | AG150: 1720.203456 | AH150: 58.33657982 | AI150: 134.2876173 | AJ150: 313.8716302 | AK150: 1149.395229 | AL150: 743.6765436 | AM150: 0 | AN150: 0 | AO150: 0 | AP150: 0 | AQ150: 0 | AR150: 0 | AS150: 0 | AT150: 0 | AU150: 0 | AV150: 0 | AW150: 0 | AX150: 0 | AY150: 0 | AZ150: 0 | BA150: 0 | BB150: 0 | BC150: 0 | BD150: 0 | BE150: 0 | BF150: 0 | BG150: 0 | BH150: 0 | BI150: 0 | BJ150: 0 | BK150: 0 | BL150: 0 | BM150: 0 | BN150: 0 | BO150: 0 | BP150: 0 | BQ150: 0 | BR150: 0 | BS150: 0 | BT150: 0 | BU150: 0 | BV150: 0 | BW150: 0 | BX150: 0 | BY150: 0 | BZ150: 0 | CA150: 0 | CB150: 0 | CC150: 0 | CD150: 0 | CE150: 0 | CF150: 0 | CG150: 5674.66
A151: 150 | G151: (א) | H151: =$H$79 -> דרוג A- ומעלה | J151: 0 | K151: 0 | L151: 0 | M151: 0 | N151: 0 | P151: 0 | S151: 0 | T151: 0 | X151: 0 | Y151: 0 | Z151: 0 | AC151: 0 | AD151: 0 | AE151: 0 | AF151: 0 | AG151: 0 | AH151: 0 | AI151: 0 | AJ151: 0 | AK151: 0 | AL151: 0 | CG151: 0
A152: 151 | G152: (ב) | H152: =$H$80 -> דרוג BBB- ועד BBB+ | J152: 0 | K152: 0 | L152: 0 | M152: 0 | N152: 0 | P152: 0 | S152: 0 | T152: 0 | X152: 0 | Y152: 0 | Z152: 0 | AC152: 0 | AD152: 0 | AE152: 0 | AF152: 0 | AG152: 0 | AH152: 0 | AI152: 0 | AJ152: 0 | AK152: 0 | AL152: 0 | CG152: 0
A153: 152 | G153: (ג) | H153: =$H$69 -> בדרוג נמוך מ- BBB- או לא מדורג עם בטוחה מספקת | J153: 0 | K153: 0 | L153: 0 | M153: 0 | N153: 0 | P153: 0 | S153: 0 | T153: 0 | X153: 0 | Y153: 0 | Z153: 0 | AC153: 0 | AD153: 0 | AE153: 0 | AF153: 0 | AG153: 0 | AH153: 0 | AI153: 0 | AJ153: 0 | AK153: 0 | AL153: 0 | CG153: 0
A154: 153 | G154: (ד) | H154: =H149 -> דרוג נמוך מ- BBB- או לא מדורג | J154: 85661.31 | K154: 2.02620753 | L154: 826.652759 | M154: 26439.40343 | N154: 872.5176054 | O154: 27076.02 | P154: 1868.056131 | Q154: 7451.9 | R154: 1718.29 | S154: 0 | T154: 0 | U154: 1306.61 | W154: 264.74 | X154: 0 | Y154: 110.1838693 | Z154: 0 | AA154: 105.12 | AC154: 2906.22342 | AD154: 939.1923827 | AE154: 1829.42837 | AF154: 2150.514771 | AG154: 1720.203456 | AH154: 58.33657982 | AI154: 134.2876173 | AJ154: 313.8716302 | AK154: 1149.395229 | AL154: 743.6765436 | CG154: 5674.66
A155: 154 | AC155: 0 | AD155: 0 | AE155: 0 | AF155: 0 | AG155: 0 | AH155: 0 | AI155: 0 | AJ155: 0 | AK155: 0 | AL155: 0 | CG155: 0
A156: 155 | D156: 4) | E156: מניות (למעט חברות מוחזקות) | J156: 16387963.3 | K156: 425.0782084 | L156: 173423.5357 | M156: 5546724.151 | N156: 183045.5247 | O156: 5330949.83 | P156: 76510.69669 | Q156: 582844.43 | R156: 97955.87 | S156: 1187297.163 | T156: 0 | U156: 32456.53 | V156: 0 | W156: 1855.78 | X156: 0 | Y156: 4512.843307 | Z156: 46372.78741 | AA156: 953.05 | AB156: 0 | AC156: 616685.6971 | AD156: 197661.0546 | AE156: 176078.3366 | AF156: 413119.2372 | AG156: 84762.08488 | AH156: 12378.7229 | AI156: 28261.97544 | AJ156: 30209.43342 | AK156: 220801.6828 | AL156: 36644.25512 | AM156: 165184.37 | AN156: 0 | AO156: 0 | AP156: 0 | AQ156: 0 | AR156: 0 | AS156: 0 | AT156: 0 | AU156: 0 | AV156: 0 | AW156: 0 | AX156: 0 | AY156: 0 | AZ156: 0 | BA156: 0 | BB156: 0 | BC156: 0 | BD156: 0 | BE156: 0 | BF156: 0 | BG156: 0 | BH156: 0 | BI156: 0 | BJ156: 0 | BK156: 0 | BL156: 0 | BM156: 0 | BN156: 0 | BO156: 0 | BP156: 0 | BQ156: 0 | BR156: 0 | BS156: 0 | BT156: 0 | BU156: 0 | BV156: 0 | BW156: 0 | BX156: 0 | BY156: 0 | BZ156: 0 | CA156: 0 | CB156: 0 | CC156: 0 | CD156: 0 | CE156: 0 | CF156: 0 | CG156: 1140849.18
A157: 156 | E157: א) | F157: בישראל | J157: 10479526.99 | K157: 283.3547964 | L157: 115603.1753 | M157: 3697415.82 | N157: 122017.1403 | O157: 3270476.95 | P157: 917.002299 | Q157: 242969.56 | R157: 28290.62 | S157: 883254.1926 | T157: 0 | U157: 2095.11 | V157: 0 | W157: 1111.39 | X157: 0 | Y157: 54.08770102 | Z157: 34497.64742 | AA157: 0 | AB157: 0 | AC157: 415808.8256 | AD157: 131232.8788 | AE157: 111388.3735 | AF157: 287488.1078 | AG157: 52002.87286 | AH157: 8346.524419 | AI157: 18763.94117 | AJ157: 19110.69651 | AK157: 153655.0522 | AL157: 22481.82714 | AM157: 118814.43 | AN157: 0 | AO157: 0 | AP157: 0 | AQ157: 0 | AR157: 0 | AS157: 0 | AT157: 0 | AU157: 0 | AV157: 0 | AW157: 0 | AX157: 0 | AY157: 0 | AZ157: 0 | BA157: 0 | BB157: 0 | BC157: 0 | BD157: 0 | BE157: 0 | BF157: 0 | BG157: 0 | BH157: 0 | BI157: 0 | BJ157: 0 | BK157: 0 | BL157: 0 | BM157: 0 | BN157: 0 | BO157: 0 | BP157: 0 | BQ157: 0 | BR157: 0 | BS157: 0 | BT157: 0 | BU157: 0 | BV157: 0 | BW157: 0 | BX157: 0 | BY157: 0 | BZ157: 0 | CA157: 0 | CB157: 0 | CC157: 0 | CD157: 0 | CE157: 0 | CF157: 0 | CG157: 741447.41
A158: 157 | F158: (1) | G158: סחיר | J158: 9870973.29 | K158: 261.1224685 | L158: 106532.8234 | M158: 3407312.522 | N158: 112443.5417 | O158: 3140854.47 | P158: 0 | Q158: 215363.8 | R158: 21397 | S158: 871994.2665 | T158: 0 | U158: 0 | V158: 0 | W158: 1111.39 | X158: 0 | Y158: 0 | Z158: 34057.86354 | AA158: 0 | AB158: 0 | AC158: 395681.6873 | AD158: 122662.044 | AE158: 99829.62629 | AF158: 280088.4799 | AG158: 47850.44577 | AH158: 7942.51267 | AI158: 17538.46596 | AJ158: 17127.58371 | AK158: 149700.1401 | AL158: 20686.65423 | AM158: 99129.09 | AN158: 0 | AO158: 0 | AP158: 0 | AQ158: 0 | AR158: 0 | AS158: 0 | AT158: 0 | AU158: 0 | AV158: 0 | AW158: 0 | AX158: 0 | AY158: 0 | AZ158: 0 | BA158: 0 | BB158: 0 | BC158: 0 | BD158: 0 | BE158: 0 | BF158: 0 | BG158: 0 | BH158: 0 | BI158: 0 | BJ158: 0 | BK158: 0 | BL158: 0 | BM158: 0 | BN158: 0 | BO158: 0 | BP158: 0 | BQ158: 0 | BR158: 0 | BS158: 0 | BT158: 0 | BU158: 0 | BV158: 0 | BW158: 0 | BX158: 0 | BY158: 0 | BZ158: 0 | CA158: 0 | CB158: 0 | CC158: 0 | CD158: 0 | CE158: 0 | CF158: 0 | CG158: 701407.76
A159: 158 | G159: (א) | H159: ='[1]טופס 106 חודשי'!H158 -> ת"א 35 | J159: 6188244.83 | K159: 162.5210276 | L159: 66305.37787 | M159: 2120690.478 | N159: 69984.17279 | O159: 1981723 | P159: 0 | Q159: 127752.07 | R159: 10407.69 | S159: 553427.6335 | T159: 0 | U159: 0 | V159: 0 | W159: 538.17 | X159: 0 | Y159: 0 | Z159: 21615.46646 | AA159: 0 | AB159: 0 | AC159: 251126.8642 | AD159: 77849.79903 | AE159: 63358.74731 | AF159: 177763.4405 | AG159: 30369.19965 | AH159: 5040.865838 | AI159: 11131.12097 | AJ159: 10870.34269 | AK159: 95010.01953 | AL159: 13129.18035 | AM159: 62914.15 | AN159: 0 | AO159: 0 | AP159: 0 | AQ159: 0 | AR159: 0 | AS159: 0 | AT159: 0 | AU159: 0 | AV159: 0 | AW159: 0 | AX159: 0 | AY159: 0 | AZ159: 0 | BA159: 0 | BB159: 0 | BC159: 0 | BD159: 0 | BE159: 0 | BF159: 0 | BG159: 0 | BH159: 0 | BI159: 0 | BJ159: 0 | BK159: 0 | BL159: 0 | BM159: 0 | BN159: 0 | BO159: 0 | BP159: 0 | BQ159: 0 | BR159: 0 | BS159: 0 | BT159: 0 | BU159: 0 | BV159: 0 | BW159: 0 | BX159: 0 | BY159: 0 | BZ159: 0 | CA159: 0 | CB159: 0 | CC159: 0 | CD159: 0 | CE159: 0 | CF159: 0 | CG159: 437074.52
A160: 159 | H160: a | I160: מניות | J160: 6188244.83 | K160: 162.5210276 | L160: 66305.37787 | M160: 2120690.478 | N160: 69984.17279 | O160: 1981723 | P160: 0 | Q160: 127752.07 | R160: 10407.69 | S160: 553427.6335 | T160: 0 | W160: 538.17 | X160: 0 | Y160: 0 | Z160: 21615.46646 | AC160: 251126.8642 | AD160: 77849.79903 | AE160: 63358.74731 | AF160: 177763.4405 | AG160: 30369.19965 | AH160: 5040.865838 | AI160: 11131.12097 | AJ160: 10870.34269 | AK160: 95010.01953 | AL160: 13129.18035 | AM160: 62914.15 | CG160: 437074.52
A161: 160 | H161: b | I161: אופציה 001 Call ח (Long) | J161: 0 | K161: 0 | L161: 0 | M161: 0 | N161: 0 | P161: 0 | S161: 0 | T161: 0 | X161: 0 | Y161: 0 | Z161: 0 | AC161: 0 | AD161: 0 | AE161: 0 | AF161: 0 | AG161: 0 | AH161: 0 | AI161: 0 | AJ161: 0 | AK161: 0 | AL161: 0 | CG161: 0
A162: 161 | H162: c | I162: אופציה 001 Call ח (Short) | J162: 0 | K162: 0 | L162: 0 | M162: 0 | N162: 0 | P162: 0 | S162: 0 | T162: 0 | X162: 0 | Y162: 0 | Z162: 0 | AC162: 0 | AD162: 0 | AE162: 0 | AF162: 0 | AG162: 0 | AH162: 0 | AI162: 0 | AJ162: 0 | AK162: 0 | AL162: 0 | CG162: 0
A163: 162 | G163: (ב) | H163: ='[1]טופס 106 חודשי'!H162 -> ת"א 90 | J163: 2641414.83 | K163: 70.31706672 | L163: 28687.97809 | M163: 917547.3231 | N163: 30279.66177 | O163: 833306.8 | P163: 0 | Q163: 66607.4 | R163: 9278.12 | S163: 227574.9164 | T163: 0 | W163: 487.77 | X163: 0 | Y163: 0 | Z163: 8888.49359 | AC163: 103265.8462 | AD163: 32012.60351 | AE163: 26053.74698 | AF163: 73098.0884 | AG163: 12488.11241 | AH163: 2072.853807 | AI163: 4577.226487 | AJ163: 4469.993017 | AK163: 39069.0616 | AL163: 5398.847585 | AM163: 25870.92 | CG163: 190308.75
A164: 163 | G164: (ג) | H164: מניות היתר | J164: 731642.55 | K164: 20.1515003 | L164: 8221.415167 | M164: 262951.1727 | N164: 8677.560677 | O164: 226655.33 | P164: 0 | Q164: 14611.36 | R164: 1190.37 | S164: 63297.10705 | T164: 0 | W164: 59.45 | X164: 0 | Y164: 0 | Z164: 2472.222946 | AC164: 28722.09187 | AD164: 8903.884651 | AE164: 7246.535375 | AF164: 20331.3126 | AG164: 3473.402357 | AH164: 576.5381263 | AI164: 1273.095349 | AJ164: 1243.274625 | AK164: 10866.5674 | AL164: 1501.617643 | AM164: 7195.67 | CG164: 52152.42
A165: 164 | G165: (ד) | H165: מניות זרות הנסחרות בארץ | J165: 309671.08 | K165: 8.132873846 | L165: 3318.052324 | M165: 106123.5483 | N165: 3502.146502 | O165: 99169.34 | P165: 0 | Q165: 6392.97 | R165: 520.82 | S165: 27694.60946 | T165: 0 | W165: 26 | X165: 0 | Y165: 0 | Z165: 1081.680541 | AC165: 12566.8851 | AD165: 3895.756845 | AE165: 3170.596622 | AF165: 8895.638423 | AG165: 1519.731347 | AH165: 252.2548992 | AI165: 557.0231552 | AJ165: 543.9733781 | AK165: 4754.491577 | AL165: 657.0086528 | AM165: 3148.35 | CG165: 21872.07
A166: 165 | F166: (2) | G166: לא סחיר | J166: 608553.7 | K166: 22.23232786 | L166: 9070.351824 | M166: 290103.2973 | N166: 9573.598549 | O166: 129622.48 | P166: 917.002299 | Q166: 27605.76 | R166: 6893.62 | S166: 11259.92611 | T166: 0 | U166: 2095.11 | W166: 0 | X166: 0 | Y166: 54.08770102 | Z166: 439.783886 | AC166: 20127.13825 | AD166: 8570.83479 | AE166: 11558.7472 | AF166: 7399.627865 | AG166: 4152.427098 | AH166: 404.0117491 | AI166: 1225.47521 | AJ166: 1983.112805 | AK166: 3954.912135 | AL166: 1795.172902 | AM166: 19685.34 | CG166: 40039.65
A167: 166 | E167: ב) | F167: בחו"ל | J167: 5908436.31 | K167: 141.7234121 | L167: 57820.36039 | M167: 1849308.332 | N167: 61028.38446 | O167: 2060472.88 | P167: 75593.69439 | Q167: 339874.87 | R167: 69665.25 | S167: 304042.97 | T167: 0 | U167: 30361.42 | V167: 0 | W167: 744.39 | X167: 0 | Y167: 4458.755606 | Z167: 11875.13999 | AA167: 953.05 | AB167: 0 | AC167: 200876.8715 | AD167: 66428.17573 | AE167: 64689.96309 | AF167: 125631.1294 | AG167: 32759.21202 | AH167: 4032.198477 | AI167: 9498.034275 | AJ167: 11098.73691 | AK167: 67146.63055 | AL167: 14162.42798 | AM167: 46369.94 | AN167: 0 | AO167: 0 | AP167: 0 | AQ167: 0 | AR167: 0 | AS167: 0 | AT167: 0 | AU167: 0 | AV167: 0 | AW167: 0 | AX167: 0 | AY167: 0 | AZ167: 0 | BA167: 0 | BB167: 0 | BC167: 0 | BD167: 0 | BE167: 0 | BF167: 0 | BG167: 0 | BH167: 0 | BI167: 0 | BJ167: 0 | BK167: 0 | BL167: 0 | BM167: 0 | BN167: 0 | BO167: 0 | BP167: 0 | BQ167: 0 | BR167: 0 | BS167: 0 | BT167: 0 | BU167: 0 | BV167: 0 | BW167: 0 | BX167: 0 | BY167: 0 | BZ167: 0 | CA167: 0 | CB167: 0 | CC167: 0 | CD167: 0 | CE167: 0 | CF167: 0 | CG167: 399401.77
A168: 167 | F168: (1) | G168: סחיר | J168: 3508047.82 | K168: 88.9870708 | L168: 36304.97198 | M168: 1161166.875 | N168: 38319.26631 | O168: 1146840.85 | P168: 0 | Q168: 95921.69 | R168: 8655.05 | S168: 301644.4982 | T168: 0 | U168: 12178.03 | V168: 0 | W168: 374.47 | X168: 0 | Y168: 0 | Z168: 11781.46182 | AA168: 2.4 | AB168: 0 | AC168: 144182.7125 | AD168: 45323.16294 | AE168: 38468.23612 | AF168: 99557.38176 | AG168: 18296.44165 | AH168: 2894.177461 | AI168: 6480.397065 | AJ168: 6599.923879 | AK168: 53210.87824 | AL168: 7909.898352 | AM168: 31106.99 | AN168: 0 | AO168: 0 | AP168: 0 | AQ168: 0 | AR168: 0 | AS168: 0 | AT168: 0 | AU168: 0 | AV168: 0 | AW168: 0 | AX168: 0 | AY168: 0 | AZ168: 0 | BA168: 0 | BB168: 0 | BC168: 0 | BD168: 0 | BE168: 0 | BF168: 0 | BG168: 0 | BH168: 0 | BI168: 0 | BJ168: 0 | BK168: 0 | BL168: 0 | BM168: 0 | BN168: 0 | BO168: 0 | BP168: 0 | BQ168: 0 | BR168: 0 | BS168: 0 | BT168: 0 | BU168: 0 | BV168: 0 | BW168: 0 | BX168: 0 | BY168: 0 | BZ168: 0 | CA168: 0 | CB168: 0 | CC168: 0 | CD168: 0 | CE168: 0 | CF168: 0 | CG168: 240739.07
A169: 168 | G169: (א) | H169: חברות ישראליות | J169: 1143498.92 | K169: 30.0316471 | L169: 12252.32044 | M169: 391874.3868 | N169: 12932.11107 | O169: 366195.11 | P169: 0 | Q169: 23606.81 | R169: 1923.19 | S169: 102265.7997 | T169: 0 | W169: 96.02 | X169: 0 | Y169: 0 | Z169: 3994.240311 | AC169: 46404.77758 | AD169: 14385.57196 | AE169: 11707.8209 | AF169: 32848.22992 | AG169: 5611.808758 | AH169: 931.4824156 | AI169: 2056.878035 | AJ169: 2008.689103 | AK169: 17556.54008 | AL169: 2426.091242 | AM169: 11625.67 | CG169: 80765.34
A170: 169 | G170: (ב) | H170: חברות זרות החזקה מתחת ל-10% | J170: 2350047.43 | K170: 58.84491422 | L170: 24007.56585 | M170: 767850.4812 | N170: 25339.56808 | O170: 772938.05 | P170: 0 | Q170: 70558.64 | R170: 6242.34 | S170: 199286.9038 | T170: 0 | U170: 12086.84 | W170: 278.36 | X170: 0 | Y170: 0 | Z170: 7783.63624 | AA170: 2.4 | AC170: 97071.28944 | AD170: 30708.90846 | AE170: 26501.7619 | AF170: 66597.71303 | AG170: 12566.32823 | AH170: 1948.51056 | AI170: 4390.821543 | AJ170: 4546.858104 | AK170: 35594.77697 | AL170: 5432.661766 | AM170: 19470.89 | CG170: 158783.28
A171: 170 | G171: (ג) | H171: חברות זרות החזקה של 10% ומעלה | J171: 14501.47 | K171: 0.1105094793 | L171: 45.08569071 | M171: 1442.006638 | N171: 47.58716217 | O171: 7707.69 | P171: 0 | Q171: 1756.24 | R171: 489.52 | S171: 91.79473275 | T171: 0 | U171: 91.19 | W171: 0.09 | X171: 0 | Y171: 0 | Z171: 3.585267245 | AC171: 706.645515 | AD171: 228.6825139 | AE171: 258.6533285 | AF171: 111.4388046 | AG171: 118.3046559 | AH171: 14.18448499 | AI171: 32.69748613 | AJ171: 44.37667153 | AK171: 59.56119536 | AL171: 51.14534405 | AM171: 10.43 | CG171: 1190.45
A172: 171 | F172: (2) | G172: לא סחיר | J172: 2400388.49 | K172: 52.73634126 | L172: 21515.38841 | M172: 688141.4571 | N172: 22709.11815 | O172: 913632.03 | P172: 75593.69439 | Q172: 243953.18 | R172: 61010.2 | S172: 2398.471831 | T172: 0 | U172: 18183.39 | V172: 0 | W172: 369.92 | X172: 0 | Y172: 4458.755606 | Z172: 93.67816907 | AA172: 950.65 | AB172: 0 | AC172: 56694.15898 | AD172: 21105.01279 | AE172: 26221.72697 | AF172: 26073.74769 | AG172: 14462.77037 | AH172: 1138.021017 | AI172: 3017.63721 | AJ172: 4498.813031 | AK172: 13935.75231 | AL172: 6252.529629 | AM172: 15262.95 | AN172: 0 | AO172: 0 | AP172: 0 | AQ172: 0 | AR172: 0 | AS172: 0 | AT172: 0 | AU172: 0 | AV172: 0 | AW172: 0 | AX172: 0 | AY172: 0 | AZ172: 0 | BA172: 0 | BB172: 0 | BC172: 0 | BD172: 0 | BE172: 0 | BF172: 0 | BG172: 0 | BH172: 0 | BI172: 0 | BJ172: 0 | BK172: 0 | BL172: 0 | BM172: 0 | BN172: 0 | BO172: 0 | BP172: 0 | BQ172: 0 | BR172: 0 | BS172: 0 | BT172: 0 | BU172: 0 | BV172: 0 | BW172: 0 | BX172: 0 | BY172: 0 | BZ172: 0 | CA172: 0 | CB172: 0 | CC172: 0 | CD172: 0 | CE172: 0 | CF172: 0 | CG172: 158662.7
A173: 172 | G173: (א) | H173: חברות ישראליות | J173: 0 | K173: 0 | L173: 0 | M173: 0 | N173: 0 | P173: 0 | S173: 0 | T173: 0 | X173: 0 | Y173: 0 | Z173: 0 | AC173: 0 | AD173: 0 | AE173: 0 | AF173: 0 | AG173: 0 | AH173: 0 | AI173: 0 | AJ173: 0 | AK173: 0 | AL173: 0 | CG173: 0
A174: 173 | G174: (ב) | H174: חברות זרות | J174: 2400388.49 | K174: 52.73634126 | L174: 21515.38841 | M174: 688141.4571 | N174: 22709.11815 | O174: 913632.03 | P174: 75593.69439 | Q174: 243953.18 | R174: 61010.2 | S174: 2398.471831 | T174: 0 | U174: 18183.39 | W174: 369.92 | X174: 0 | Y174: 4458.755606 | Z174: 93.67816907 | AA174: 950.65 | AC174: 56694.15898 | AD174: 21105.01279 | AE174: 26221.72697 | AF174: 26073.74769 | AG174: 14462.77037 | AH174: 1138.021017 | AI174: 3017.63721 | AJ174: 4498.813031 | AK174: 13935.75231 | AL174: 6252.529629 | AM174: 15262.95 | CG174: 158662.7
A175: 174 | J175: 0 | AC175: 0 | AD175: 0 | AE175: 0 | AF175: 0 | AG175: 0 | AH175: 0 | AI175: 0 | AJ175: 0 | AK175: 0 | AL175: 0 | CG175: 0
A176: 175 | D176: 5) | E176: השקעות בקרנות סל | J176: 7944396.72 | K176: 177.7066058 | L176: 72500.79463 | M176: 2318842.751 | N176: 76523.3274 | O176: 2342536.5 | P176: 19718.56647 | Q176: 281363.54 | R176: 45109.51 | S176: 569287.7577 | T176: 374.8529567 | U176: 85891.01 | V176: 0 | W176: 6602.26 | X176: 24.00704335 | Y176: 1163.063527 | Z176: 22234.92231 | AA176: 3584.86 | AB176: 228501.07 | AC176: 293364.0478 | AD176: 93880.27003 | AE176: 93449.05847 | AF176: 213855.2108 | AG176: 48748.46503 | AH176: 5888.692202 | AI176: 13423.18997 | AJ176: 16032.88153 | AK176: 114300.1492 | AL176: 21074.88497 | AM176: 53931.28 | AN176: 17376.29 | AO176: 228702.28 | AP176: 51430.25 | AQ176: 58167.18 | AR176: 74011.2 | AS176: 0 | AT176: 0 | AU176: 0 | AV176: 0 | AW176: 0 | AX176: 0 | AY176: 0 | AZ176: 0 | BA176: 0 | BB176: 0 | BC176: 0 | BD176: 0 | BE176: 0 | BF176: 0 | BG176: 0 | BH176: 0 | BI176: 0 | BJ176: 0 | BK176: 0 | BL176: 0 | BM176: 0 | BN176: 0 | BO176: 0 | BP176: 0 | BQ176: 0 | BR176: 0 | BS176: 0 | BT176: 0 | BU176: 0 | BV176: 0 | BW176: 0 | BX176: 0 | BY176: 0 | BZ176: 0 | CA176: 0 | CB176: 0 | CC176: 0 | CD176: 0 | CE176: 0 | CF176: 0 | CG176: 472324.89
A177: 176 | E177: א) | F177: בישראל | J177: 1772874.39 | K177: 28.78528747 | L177: 11743.83026 | M177: 375610.9959 | N177: 12395.40853 | O177: 352151.4 | P177: 19585.41044 | Q177: 86864.04 | R177: 27672.49 | S177: 66123.20683 | T177: 374.8529567 | U177: 2150.78 | V177: 0 | W177: 5779.78 | X177: 24.00704335 | Y177: 1155.209562 | Z177: 2582.603168 | AA177: 0 | AB177: 122370.65 | AC177: 43927.13134 | AD177: 14583.62408 | AE177: 24071.15637 | AF177: 43838.45518 | AG177: 15828.2344 | AH177: 881.7486591 | AI177: 2085.195925 | AJ177: 4129.843626 | AK177: 23430.53482 | AL177: 6842.845599 | AM177: 6790.24 | AN177: 17376.29 | AO177: 228702.28 | AP177: 51430.25 | AQ177: 58167.18 | AR177: 74011.2 | AS177: 0 | AT177: 0 | AU177: 0 | AV177: 0 | AW177: 0 | AX177: 0 | AY177: 0 | AZ177: 0 | BA177: 0 | BB177: 0 | BC177: 0 | BD177: 0 | BE177: 0 | BF177: 0 | BG177: 0 | BH177: 0 | BI177: 0 | BJ177: 0 | BK177: 0 | BL177: 0 | BM177: 0 | BN177: 0 | BO177: 0 | BP177: 0 | BQ177: 0 | BR177: 0 | BS177: 0 | BT177: 0 | BU177: 0 | BV177: 0 | BW177: 0 | BX177: 0 | BY177: 0 | BZ177: 0 | CA177: 0 | CB177: 0 | CC177: 0 | CD177: 0 | CE177: 0 | CF177: 0 | CG177: 70164.73
A178: 177 | F178: (1) | G178: שעוקבות אחר מדדי מניות בארץ | J178: 520116.25 | K178: 10.74388467 | L178: 4383.29331 | M178: 140193.883 | N178: 4626.48983 | O178: 131007.07 | P178: 0 | Q178: 8445.39 | R178: 688.03 | S178: 36585.80223 | T178: 0 | W178: 34.35 | X178: 0 | Y178: 0 | Z178: 1428.947767 | AB178: 37015.89 | AC178: 16601.41014 | AD178: 5146.467691 | AE178: 4188.497293 | AF178: 11751.52824 | AG178: 2007.639437 | AH178: 333.2398607 | AI178: 735.8523094 | AJ178: 718.6127072 | AK178: 6280.891757 | AL178: 867.9405633 | AM178: 4159.11 | AR178: 74011.2 | CG178: 28893.97
A179: 178 | F179: (2) | G179: שעוקבות אחר מדדי מניות בחו"ל | J179: 564883.7 | K179: 8.318754622 | L179: 3393.888019 | M179: 108549.0535 | N179: 3582.189759 | O179: 111277.53 | P179: 0 | Q179: 10851.97 | R179: 969.94 | S179: 28135.91326 | T179: 0 | U179: 2150.78 | W179: 42.65 | X179: 0 | Y179: 0 | Z179: 1098.916738 | AC179: 13943.38465 | AD179: 4432.151988 | AE179: 3875.498001 | AF179: 9496.534705 | AG179: 1833.250903 | AH179: 279.8853542 | AI179: 633.7180124 | AJ179: 664.9119995 | AK179: 5075.655295 | AL179: 792.5490966 | AM179: 2631.13 | AO179: 228702.28 | CG179: 22461.6
A180: 179 | F180: (3) | G180: שעוקבות אחר מדדי אג"ח בארץ | J180: 687874.44 | K180: 9.722648172 | L180: 3966.648933 | M180: 126868.0595 | N180: 4186.728939 | O180: 109866.8 | P180: 19585.41044 | Q180: 67566.68 | R180: 26014.52 | S180: 1401.491337 | T180: 374.8529567 | W180: 5702.78 | X180: 24.00704335 | Y180: 1155.209562 | Z180: 54.73866346 | AB180: 85354.76 | AC180: 13382.33656 | AD180: 5005.004397 | AE180: 16007.16108 | AF180: 22590.39223 | AG180: 11987.34406 | AH180: 268.6234442 | AI180: 715.625603 | AJ180: 2746.318919 | AK180: 12073.98777 | AL180: 5182.355939 | AN180: 17376.29 | AP180: 51430.25 | AQ180: 58167.18 | CG180: 18809.16
A181: 180 | F181: (4) | G181: שעוקבות אחר מדדי אג"ח בחו"ל | J181: 0 | K181: 0 | L181: 0 | M181: 0 | N181: 0 | P181: 0 | S181: 0 | T181: 0 | X181: 0 | Y181: 0 | Z181: 0 | AC181: 0 | AD181: 0 | AE181: 0 | AF181: 0 | AG181: 0 | AH181: 0 | AI181: 0 | AJ181: 0 | AK181: 0 | AL181: 0 | CG181: 0
A182: 181 | F182: (5) | G182: בחסר | J182: 0 | K182: 0 | L182: 0 | M182: 0 | N182: 0 | P182: 0 | S182: 0 | T182: 0 | X182: 0 | Y182: 0 | Z182: 0 | AC182: 0 | AD182: 0 | AE182: 0 | AF182: 0 | AG182: 0 | AH182: 0 | AI182: 0 | AJ182: 0 | AK182: 0 | AL182: 0 | CG182: 0
A183: 182 | F183: (6) | G183: אחר | J183: 0 | K183: 0 | L183: 0 | M183: 0 | N183: 0 | P183: 0 | S183: 0 | T183: 0 | X183: 0 | Y183: 0 | Z183: 0 | AC183: 0 | AD183: 0 | AE183: 0 | AF183: 0 | AG183: 0 | AH183: 0 | AI183: 0 | AJ183: 0 | AK183: 0 | AL183: 0 | CG183: 0
A184: 183 | E184: ב) | F184: בחו"ל | J184: 6171522.33 | K184: 148.9213183 | L184: 60756.96437 | M184: 1943231.755 | N184: 64127.91887 | O184: 1990385.1 | P184: 133.1560352 | Q184: 194499.5 | R184: 17437.02 | S184: 503164.5509 | T184: 0 | U184: 83740.23 | V184: 0 | W184: 822.48 | X184: 0 | Y184: 7.853964845 | Z184: 19652.31914 | AA184: 3584.86 | AB184: 106130.42 | AC184: 249436.9165 | AD184: 79296.64595 | AE184: 69377.9021 | AF184: 170016.7557 | AG184: 32920.23062 | AH184: 5006.943543 | AI184: 11337.99405 | AJ184: 11903.0379 | AK184: 90869.61433 | AL184: 14232.03938 | AM184: 47141.04 | AN184: 0 | AO184: 0 | AP184: 0 | AQ184: 0 | AR184: 0 | AS184: 0 | AT184: 0 | AU184: 0 | AV184: 0 | AW184: 0 | AX184: 0 | AY184: 0 | AZ184: 0 | BA184: 0 | BB184: 0 | BC184: 0 | BD184: 0 | BE184: 0 | BF184: 0 | BG184: 0 | BH184: 0 | BI184: 0 | BJ184: 0 | BK184: 0 | BL184: 0 | BM184: 0 | BN184: 0 | BO184: 0 | BP184: 0 | BQ184: 0 | BR184: 0 | BS184: 0 | BT184: 0 | BU184: 0 | BV184: 0 | BW184: 0 | BX184: 0 | BY184: 0 | BZ184: 0 | CA184: 0 | CB184: 0 | CC184: 0 | CD184: 0 | CE184: 0 | CF184: 0 | CG184: 402160.16
A185: 184 | F185: (1) | G185: שעוקבות אחר מדדי מניות | J185: 6118387.83 | K185: 148.7585642 | L185: 60690.56389 | M185: 1941108.023 | N185: 64057.83432 | O185: 1988389.75 | P185: 0 | Q185: 193396.8 | R185: 17277.77 | S185: 503164.5509 | T185: 0 | U185: 66051.52 | W185: 760.29 | X185: 0 | Y185: 0 | Z185: 19652.31914 | AB185: 81747.31 | AC185: 249172.7981 | AD185: 79188.53401 | AE185: 69205.8165 | AF185: 169758.9671 | AG185: 32740.0054 | AH185: 5001.641899 | AI185: 11322.53599 | AJ185: 11873.5135 | AK185: 90731.83291 | AL185: 14154.1246 | AM185: 47141.04 | CG185: 401651.53
A186: 185 | F186: (2) | G186: שעוקבות אחר מדדי אג"ח | J186: 53134.5 | K186: 0.1627541337 | L186: 66.40048056 | M186: 2123.732213 | N186: 70.08455203 | O186: 1995.35 | P186: 133.1560352 | Q186: 1102.7 | R186: 159.25 | S186: 0 | T186: 0 | U186: 17688.71 | W186: 62.19 | X186: 0 | Y186: 7.853964845 | Z186: 0 | AA186: 3584.86 | AB186: 24383.11 | AC186: 264.1183561 | AD186: 108.1119376 | AE186: 172.085594 | AF186: 257.7885845 | AG186: 180.2252221 | AH186: 5.301643865 | AI186: 15.45806244 | AJ186: 29.52440599 | AK186: 137.7814155 | AL186: 77.91477789 | CG186: 508.63
A187: 186 | F187: (3) | G187: בחסר | J187: 0 | K187: 0 | L187: 0 | M187: 0 | N187: 0 | P187: 0 | S187: 0 | T187: 0 | X187: 0 | Y187: 0 | Z187: 0 | AC187: 0 | AD187: 0 | AE187: 0 | AF187: 0 | AG187: 0 | AH187: 0 | AI187: 0 | AJ187: 0 | AK187: 0 | AL187: 0 | CG187: 0
A188: 187 | F188: (4) | G188: אחר | J188: 0 | K188: 0 | L188: 0 | M188: 0 | N188: 0 | P188: 0 | S188: 0 | T188: 0 | X188: 0 | Y188: 0 | Z188: 0 | AC188: 0 | AD188: 0 | AE188: 0 | AF188: 0 | AG188: 0 | AH188: 0 | AI188: 0 | AJ188: 0 | AK188: 0 | AL188: 0 | CG188: 0
A189: 188 | AC189: 0 | AD189: 0 | AE189: 0 | AF189: 0 | AG189: 0 | AH189: 0 | AI189: 0 | AJ189: 0 | AK189: 0 | AL189: 0 | CG189: 0
A190: 189 | D190: 6) | E190: תעודות השתתפות בקרנות נאמנות | J190: 2770567.83 | K190: 63.28981257 | L190: 25820.99682 | M190: 825850.6904 | N190: 27253.61292 | O190: 811238.11 | P190: 25573.44707 | Q190: 253364.18 | R190: 34814.4 | S190: 109846.0736 | T190: 0 | U190: 40265.81 | V190: 0 | W190: 12107.19 | X190: 0 | Y190: 1508.402935 | Z190: 4290.306403 | AA190: 3795.24 | AB190: 0 | AC190: 104363.8068 | AD190: 37809.01144 | AE190: 47943.38279 | AF190: 86058.33666 | AG190: 41659.0175 | AH190: 2094.893154 | AI190: 5406.008559 | AJ190: 8225.557208 | AK190: 45995.98334 | AL190: 18009.9825 | AM190: 10159.05 | AN190: 284.79 | AO190: 0 | AP190: 781.94 | AQ190: 994.75 | AR190: 818.54 | AS190: 0 | AT190: 0 | AU190: 0 | AV190: 0 | AW190: 0 | AX190: 0 | AY190: 0 | AZ190: 0 | BA190: 0 | BB190: 0 | BC190: 0 | BD190: 0 | BE190: 0 | BF190: 0 | BG190: 0 | BH190: 0 | BI190: 0 | BJ190: 0 | BK190: 0 | BL190: 0 | BM190: 0 | BN190: 0 | BO190: 0 | BP190: 0 | BQ190: 0 | BR190: 0 | BS190: 0 | BT190: 0 | BU190: 0 | BV190: 0 | BW190: 0 | BX190: 0 | BY190: 0 | BZ190: 0 | CA190: 0 | CB190: 0 | CC190: 0 | CD190: 0 | CE190: 0 | CF190: 0 | CG190: 184171.03
A191: 190 | E191: א) | F191: בישראל | J191: 18311.76 | K191: 0.3917294236 | L191: 159.8178884 | M191: 5111.565381 | N191: 168.6850007 | O191: 4776.61 | P191: 0 | Q191: 307.92 | R191: 541.17 | S191: 1333.939729 | T191: 0 | W191: 1.25 | X191: 0 | Y191: 0 | Z191: 52.10027063 | AC191: 605.2998255 | AD191: 187.6407481 | AE191: 152.7183894 | AF191: 428.4659116 | AG191: 73.20296947 | AH191: 12.15017446 | AI191: 26.82925186 | AJ191: 26.20161064 | AK191: 229.0040884 | AL191: 31.64703053 | AM191: 151.64 | AN191: 284.79 | AP191: 781.94 | AQ191: 994.75 | AR191: 818.54 | CG191: 1053.49
A192: 191 | E192: ב) | F192: בחו"ל | J192: 2752256.07 | K192: 62.89808315 | L192: 25661.17893 | M192: 820739.1251 | N192: 27084.92792 | O192: 806461.5 | P192: 25573.44707 | Q192: 253056.26 | R192: 34273.23 | S192: 108512.1339 | T192: 0 | U192: 40265.81 | V192: 0 | W192: 12105.94 | X192: 0 | Y192: 1508.402935 | Z192: 4238.206132 | AA192: 3795.24 | AB192: 0 | AC192: 103758.507 | AD192: 37621.37069 | AE192: 47790.6644 | AF192: 85629.87075 | AG192: 41585.81453 | AH192: 2082.74298 | AI192: 5379.179308 | AJ192: 8199.355598 | AK192: 45766.97925 | AL192: 17978.33547 | AM192: 10007.41 | AN192: 0 | AO192: 0 | AP192: 0 | AQ192: 0 | AR192: 0 | AS192: 0 | AT192: 0 | AU192: 0 | AV192: 0 | AW192: 0 | AX192: 0 | AY192: 0 | AZ192: 0 | BA192: 0 | BB192: 0 | BC192: 0 | BD192: 0 | BE192: 0 | BF192: 0 | BG192: 0 | BH192: 0 | BI192: 0 | BJ192: 0 | BK192: 0 | BL192: 0 | BM192: 0 | BN192: 0 | BO192: 0 | BP192: 0 | BQ192: 0 | BR192: 0 | BS192: 0 | BT192: 0 | BU192: 0 | BV192: 0 | BW192: 0 | BX192: 0 | BY192: 0 | BZ192: 0 | CA192: 0 | CB192: 0 | CC192: 0 | CD192: 0 | CE192: 0 | CF192: 0 | CG192: 183117.54
A193: 192 | F193: (1) | G193: אג"ח קנצרני | J193: 922839.05 | K193: 19.56286428 | L193: 7981.263267 | M193: 255270.2293 | N193: 8424.084524 | O193: 239839.59 | P193: 16005.33465 | Q193: 132543.9 | R193: 19141.17 | S193: 1497.953761 | T193: 0 | U193: 20080.8 | W193: 7475.02 | X193: 0 | Y193: 944.045349 | Z193: 58.5062388 | AA193: 2375.26 | AC193: 31746.56173 | AD193: 12995.0339 | AE193: 20684.68669 | AF193: 30986.0875 | AG193: 21662.80779 | AH193: 637.2482652 | AI193: 1858.056104 | AJ193: 3548.833307 | AK193: 16561.2725 | AL193: 9365.242211 | CG193: 61136.5
A194: 193 | F194: (2) | G194: אג"ח ממשלתי | J194: 0 | K194: 0 | L194: 0 | M194: 0 | N194: 0 | P194: 0 | S194: 0 | T194: 0 | X194: 0 | Y194: 0 | Z194: 0 | AC194: 0 | AD194: 0 | AE194: 0 | AF194: 0 | AG194: 0 | AH194: 0 | AI194: 0 | AJ194: 0 | AK194: 0 | AL194: 0 | CG194: 0
A195: 194 | F195: (3) | G195: מניות | J195: 1278657.11 | K195: 31.64016453 | L195: 12908.56387 | M195: 412863.4714 | N195: 13624.76458 | O195: 423241.16 | P195: 0 | Q195: 41275.27 | R195: 3689.12 | S195: 107014.1801 | T195: 0 | U195: 8180.44 | W195: 162.18 | X195: 0 | Y195: 0 | Z195: 4179.699894 | AC195: 53033.28368 | AD195: 16857.62312 | AE195: 14740.36324 | AF195: 36119.81255 | AG195: 6972.713748 | AH195: 1064.536321 | AI195: 2410.336885 | AJ195: 2528.976764 | AK195: 19305.11745 | AL195: 3014.436252 | AM195: 10007.41 | CG195: 85432.01
A196: 195 | F196: (4) | G196: אחר | J196: 550759.91 | K196: 11.69505434 | L196: 4771.351797 | M196: 152605.4243 | N196: 5036.078812 | O196: 143380.75 | P196: 9568.112414 | Q196: 79237.09 | R196: 11442.94 | S196: 0 | T196: 0 | U196: 12004.57 | W196: 4468.74 | X196: 0 | Y196: 564.3575858 | Z196: 0 | AA196: 1419.98 | AC196: 18978.66161 | AD196: 7768.713681 | AE196: 12365.61447 | AF196: 18523.97069 | AG196: 12950.29299 | AH196: 380.9583943 | AI196: 1110.786319 | AJ196: 2121.545526 | AK196: 9900.589305 | AL196: 5598.657006 | CG196: 36549.03
A197: 196 | AC197: 0 | AD197: 0 | AE197: 0 | AF197: 0 | AG197: 0 | AH197: 0 | AI197: 0 | AJ197: 0 | AK197: 0 | AL197: 0 | CG197: 0
A198: 197 | D198: 7) | E198: קרנות השקעה | J198: 8790446.83 | K198: 219.4009916 | L198: 89511.28271 | M198: 2862900.885 | N198: 94477.60163 | O198: 2923069.98 | P198: 45411.31666 | Q198: 706414.75 | R198: 205523.82 | S198: 228126.5895 | T198: 0 | U198: 74154.62 | V198: 0 | W198: 1240.39 | X198: 0 | Y198: 2678.503338 | Z198: 8910.040527 | AA198: 2758.51 | AB198: 0 | AC198: 287987.8443 | AD198: 106497.6339 | AE198: 160183.9047 | AF198: 140217.0613 | AG198: 58938.73728 | AH198: 5780.775747 | AI198: 15227.24606 | AJ198: 27482.45525 | AK198: 74942.43867 | AL198: 25480.33272 | AM198: 95037.56 | AN198: 0 | AO198: 0 | AP198: 0 | AQ198: 0 | AR198: 0 | AS198: 0 | AT198: 0 | AU198: 0 | AV198: 0 | AW198: 0 | AX198: 0 | AY198: 0 | AZ198: 0 | BA198: 0 | BB198: 0 | BC198: 0 | BD198: 0 | BE198: 0 | BF198: 0 | BG198: 0 | BH198: 0 | BI198: 0 | BJ198: 0 | BK198: 0 | BL198: 0 | BM198: 0 | BN198: 0 | BO198: 0 | BP198: 0 | BQ198: 0 | BR198: 0 | BS198: 0 | BT198: 0 | BU198: 0 | BV198: 0 | BW198: 0 | BX198: 0 | BY198: 0 | BZ198: 0 | CA198: 0 | CB198: 0 | CC198: 0 | CD198: 0 | CE198: 0 | CF198: 0 | CG198: 547273.15
A199: 198 | E199: א) | F199: בישראל | J199: 1717937.71 | K199: 60.84463688 | L199: 24823.4133 | M199: 793944.2912 | N199: 26200.68088 | O199: 528106.9 | P199: 3335.983144 | Q199: 102113.24 | R199: 25378.28 | S199: 31688.09417 | T199: 0 | U199: 4612.54 | V199: 0 | W199: 211.93 | X199: 0 | Y199: 196.7668556 | Z199: 1237.655829 | AA199: 0 | AB199: 0 | AC199: 21171.89683 | AD199: 8262.632215 | AE199: 9903.973626 | AF199: 10864.90547 | AG199: 2848.974395 | AH199: 424.9831725 | AI199: 1181.407785 | AJ199: 1699.206374 | AK199: 5807.014527 | AL199: 1231.665605 | AM199: 13541.49 | AN199: 0 | AO199: 0 | AP199: 0 | AQ199: 0 | AR199: 0 | AS199: 0 | AT199: 0 | AU199: 0 | AV199: 0 | AW199: 0 | AX199: 0 | AY199: 0 | AZ199: 0 | BA199: 0 | BB199: 0 | BC199: 0 | BD199: 0 | BE199: 0 | BF199: 0 | BG199: 0 | BH199: 0 | BI199: 0 | BJ199: 0 | BK199: 0 | BL199: 0 | BM199: 0 | BN199: 0 | BO199: 0 | BP199: 0 | BQ199: 0 | BR199: 0 | BS199: 0 | BT199: 0 | BU199: 0 | BV199: 0 | BW199: 0 | BX199: 0 | BY199: 0 | BZ199: 0 | CA199: 0 | CB199: 0 | CC199: 0 | CD199: 0 | CE199: 0 | CF199: 0 | CG199: 99088.94
A200: 199 | F200: (1) | G200: קרנות הון סיכון | J200: 154159.2 | K200: 5.933639515 | L200: 2420.808039 | M200: 77426.36755 | N200: 2555.120769 | O200: 38775.48 | P200: 0 | Q200: 5813.73 | R200: 1496.28 | S200: 2855.539922 | T200: 0 | U200: 525.49 | X200: 0 | Y200: 0 | Z200: 111.5300785 | AC200: 3823.079384 | AD200: 1434.641999 | AE200: 978.7821611 | AF200: 2001.408347 | AG200: 125.3980481 | AH200: 76.74061605 | AI200: 205.1280008 | AJ200: 167.9278389 | AK200: 1069.701653 | AL200: 54.21195188 | AM200: 1887.61 | CG200: 10348.29
... 337 more rows

Sheet גיליון2

Sheet גיליון3
